Workbook

Sheet Dataset
A1: The Demos Index - Dataset V.1.0
A2: Demos | B2: Perspective Lacking Indicator | C2: Index Score | D2: NP 5.1.1: Ethical Culture | E2: NP 5.1.1: Points | F2: NP 5.1.2: Self Identification | G2: NP 5.1.2: Points | H2: NP 5.1.3: Opposition to National Identity | I2: NP 5.1.3: Points | J2: NP 5.1.4: Cultural Similarity | K2: NP 5.1.4: Points | L2: NP: 5.1.5: Governmental Functionality | M2: NP 5.1.5: Points | N2: NP 5.1.6: Governmental Democracy | O2: NP 5.1.6: Points | P2: NP: 5.1.7: Secessionist Coding. exchanging 5.1.5 and 5.1.6 | Q2: NP 5.1.7: Points | R2: ∑NPp: Summation of NP-points awarded | S2: ∑NPp/∑NPt: Points awarded divided by total points (normally 12) | T2: NP Harmonisation (quota multiplied with 1/3) | U2: AAP 5.2.1: International Law | V2: AAP 5.2.1: Points | W2: AAP 5.2.2: Climate Change Responsibility | X2: AAP 5.2.2: Points | Y2: AAP 5.2.3: Voice Plurality | Z2: AAP 5.2.3: Points | AA2: ∑AAPp: Summation of AAP-points awarded | AB2: ∑AAPp/∑AAPt Points awarded divided by total points (normally 6) | AC2: AAP Harmonisation (quota multiplied with 1/3) | AD2: CP 5.3.1: Migrant Integration | AE2: CP 5.3.1: Points | AF2: CP 5.3.2: Military Intervention | AG2: CP 5.3.2: Points | AH2: CP 5.3.3: Political Participation | AI2: CP 5.3.3: Points | AJ2: ∑CPp: Summation of CP-points awarded | AK2: ∑CPp/∑CPt Points awarded divided by total points (normally 6) | AL2: CP Harmonisation (quota multiplied with 1/3)
A3: State-demoi
A4: Sweden | C4: =(T4+AC4+AL4)*10 -> 9.722222222 | D4: Intensive interpretation | E4: 2 | F4: 83 | G4: 1 | I4: 2 | J4: 0.06 | K4: 2 | L4: 20.9 | M4: 2 | N4: 100 | O4: 2 | R4: =SUM(E4+G4+I4+K4+M4+O4) -> 11 | S4: =R4/12 -> 0.9166666667 | T4: =S4*(1/3) -> 0.3055555556 | U4: ICJ, Rome | V4: 2 | W4: 73.28 | X4: 2 | Y4: 3.812 | Z4: 2 | AA4: =SUM(V4+X4+Z4) -> 6 | AB4: =AA4/6 -> 1 | AC4: =AB4*(1/3) -> 0.3333333333 | AD4: 86 | AE4: 2 | AG4: 2 | AH4: 8.33 | AI4: 2 | AJ4: =SUM(AE4,AG4,AI4) -> 6 | AK4: =AJ4/6 -> 1 | AL4: =AK4*(1/3) -> 0.3333333333
A5: Denmark | C5: =(T5+AC5+AL5)*10 -> 9.444444444 | D5: Intensive interpretation | E5: 2 | F5: 88 | G5: 2 | I5: 2 | J5: 0.14 | K5: 2 | L5: 18.1 | M5: 2 | N5: 97 | O5: 2 | R5: =SUM(E5+G5+I5+K5+M5+O5) -> 12 | S5: =R5/12 -> 1 | T5: =S5*(1/3) -> 0.3333333333 | U5: ICJ, Rome | V5: 2 | W5: 79.61 | X5: 2 | Y5: 4.555 | Z5: 2 | AA5: =SUM(V5+X5+Z5) -> 6 | AB5: =AA5/6 -> 1 | AC5: =AB5*(1/3) -> 0.3333333333 | AD5: 49 | AE5: 1 | AG5: 2 | AH5: 8.33 | AI5: 2 | AJ5: =SUM(AE5,AG5,AI5) -> 5 | AK5: =AJ5/6 -> 0.8333333333 | AL5: =AK5*(1/3) -> 0.2777777778
A6: Norway | C6: =(T6+AC6+AL6)*10 -> 10 | D6: Intensive interpretation | E6: 2 | F6: 97 | G6: 2 | H6: One proto-state | I6: 2 | J6: 0.06 | K6: 2 | L6: 15.6 | M6: 2 | N6: 100 | O6: 2 | R6: =SUM(E6+G6+I6+K6+M6+O6) -> 12 | S6: =R6/12 -> 1 | T6: =S6*(1/3) -> 0.3333333333 | U6: ICJ, Rome | V6: 2 | W6: 64.47 | X6: 2 | Y6: 4.943 | Z6: 2 | AA6: =SUM(V6+X6+Z6) -> 6 | AB6: =AA6/6 -> 1 | AC6: =AB6*(1/3) -> 0.3333333333 | AD6: 69 | AE6: 2 | AG6: 2 | AH6: 10 | AI6: 2 | AJ6: =SUM(AE6,AG6,AI6) -> 6 | AK6: =AJ6/6 -> 1 | AL6: =AK6*(1/3) -> 0.3333333333
A7: Finland | C7: =(T7+AC7+AL7)*10 -> 10 | D7: Intensive interpretation | E7: 2 | F7: 91 | G7: 2 | I7: 2 | J7: 0.11 | K7: 2 | L7: 15.1 | M7: 2 | N7: 100 | O7: 2 | R7: =SUM(E7+G7+I7+K7+M7+O7) -> 12 | S7: =R7/12 -> 1 | T7: =S7*(1/3) -> 0.3333333333 | U7: ICJ, Rome | V7: 2 | W7: 61.44 | X7: 2 | Y7: 4.358 | Z7: 2 | AA7: =SUM(V7+X7+Z7) -> 6 | AB7: =AA7/6 -> 1 | AC7: =AB7*(1/3) -> 0.3333333333 | AD7: 85 | AE7: 2 | AG7: 2 | AH7: 8.89 | AI7: 2 | AJ7: =SUM(AE7,AG7,AI7) -> 6 | AK7: =AJ7/6 -> 1 | AL7: =AK7*(1/3) -> 0.3333333333
A8: Netherlands | C8: =(T8+AC8+AL8)*10 -> 8.333333333 | D8: Intensive interpretation | E8: 2 | F8: 65 | G8: 0 | H8: Two proto-states, two secessionist movements | I8: 0 | J8: 0.11 | K8: 2 | L8: 22.1 | M8: 2 | N8: 97 | O8: 2 | R8: =SUM(E8+G8+I8+K8+M8+O8) -> 8 | S8: =R8/12 -> 0.6666666667 | T8: =S8*(1/3) -> 0.2222222222 | U8: ICJ, Rome | V8: 2 | W8: 62.24 | X8: 2 | Y8: 4.525 | Z8: 2 | AA8: =SUM(V8+X8+Z8) -> 6 | AB8: =AA8/6 -> 1 | AC8: =AB8*(1/3) -> 0.3333333333 | AD8: 57 | AE8: 1 | AG8: 2 | AH8: 8.33 | AI8: 2 | AJ8: =SUM(AE8,AG8,AI8) -> 5 | AK8: =AJ8/6 -> 0.8333333333 | AL8: =AK8*(1/3) -> 0.2777777778
A9: Switzerland | C9: =(T9+AC9+AL9)*10 -> 7.777777778 | D9: Intensive interpretation | E9: 2 | F9: 89 | G9: 2 | H9: One secessionist movement | I9: 1 | J9: 0.5 | K9: 1 | L9: 18.9 | M9: 2 | N9: 96 | O9: 2 | R9: =SUM(E9+G9+I9+K9+M9+O9) -> 10 | S9: =R9/12 -> 0.8333333333 | T9: =S9*(1/3) -> 0.2777777778 | U9: ICJ, Rome | V9: 2 | W9: 58.61 | X9: 1 | Y9: 4.783 | Z9: 2 | AA9: =SUM(V9+X9+Z9) -> 5 | AB9: =AA9/6 -> 0.8333333333 | AC9: =AB9*(1/3) -> 0.2777777778 | AD9: 50 | AE9: 1 | AG9: 2 | AH9: 7.78 | AI9: 1 | AJ9: =SUM(AE9,AG9,AI9) -> 4 | AK9: =AJ9/6 -> 0.6666666667 | AL9: =AK9*(1/3) -> 0.2222222222
A10: Germany | C10: =(T10+AC10+AL10)*10 -> 8.888888889 | D10: Intensive interpretation | E10: 2 | F10: 83 | G10: 1 | I10: 2 | J10: 0.16 | K10: 1 | L10: 23.6 | M10: 2 | N10: 94 | O10: 2 | R10: =SUM(E10+G10+I10+K10+M10+O10) -> 10 | S10: =R10/12 -> 0.8333333333 | T10: =S10*(1/3) -> 0.2777777778 | U10: ICJ, Rome | V10: 2 | W10: 61.11 | X10: 2 | Y10: 4.857 | Z10: 2 | AA10: =SUM(V10+X10+Z10) -> 6 | AB10: =AA10/6 -> 1 | AC10: =AB10*(1/3) -> 0.3333333333 | AD10: 58 | AE10: 1 | AG10: 2 | AH10: 8.33 | AI10: 2 | AJ10: =SUM(AE10,AG10,AI10) -> 5 | AK10: =AJ10/6 -> 0.8333333333 | AL10: =AK10*(1/3) -> 0.2777777778
A11: Iceland | B11: AAP | C11: =(T11+AC11+AL11)*10 -> 8.611111111 | D11: Intensive interpretation | E11: 2 | F11: 90 | G11: 2 | I11: 2 | J11: 0.07 | K11: 2 | L11: 17.1 | M11: 2 | N11: 94 | O11: 2 | R11: =SUM(E11+G11+I11+K11+M11+O11) -> 12 | S11: =R11/12 -> 1 | T11: =S11*(1/3) -> 0.3333333333 | U11: Rome | V11: 1 | Y11: 3.85 | Z11: 2 | AA11: =SUM(V11+X11+Z11) -> 3 | AB11: =AA11/4 -> 0.75 | AC11: =AB11*(1/3) -> 0.25 | AD11: 56 | AE11: 1 | AG11: 2 | AH11: 8.89 | AI11: 2 | AJ11: =SUM(AE11,AG11,AI11) -> 5 | AK11: =AJ11/6 -> 0.8333333333 | AL11: =AK11*(1/3) -> 0.2777777778
A12: United Kingdom | C12: =(T12+AC12+AL12)*10 -> 8.055555556 | D12: Intensive interpretation | E12: 2 | F12: 49 | G12: 0 | H12: Multiple proto-states, multiple secessionist movements | I12: 0 | J12: 0.09 | K12: 2 | L12: 40.6 | M12: 1 | N12: 93 | O12: 2 | R12: =SUM(E12+G12+I12+K12+M12+O12) -> 7 | S12: =R12/12 -> 0.5833333333 | T12: =S12*(1/3) -> 0.1944444444 | U12: ICJ, Rome | V12: 2 | W12: 63.07 | X12: 2 | Y12: 3.599 | Z12: 2 | AA12: =SUM(V12+X12+Z12) -> 6 | AB12: =AA12/6 -> 1 | AC12: =AB12*(1/3) -> 0.3333333333 | AD12: 56 | AE12: 1 | AG12: 2 | AH12: 8.33 | AI12: 2 | AJ12: =SUM(AE12,AG12,AI12) -> 5 | AK12: =AJ12/6 -> 0.8333333333 | AL12: =AK12*(1/3) -> 0.2777777778
A13: Canada | C13: =(T13+AC13+AL13)*10 -> 6.944444444 | D13: Intensive interpretation | E13: 2 | F13: 71 | G13: 1 | H13: One proto-state, one secessionist movements | I13: 0 | J13: 0.69 | K13: 0 | L13: 20.1 | M13: 2 | N13: 98 | O13: 2 | R13: =SUM(E13+G13+I13+K13+M13+O13) -> 7 | S13: =R13/12 -> 0.5833333333 | T13: =S13*(1/3) -> 0.1944444444 | U13: ICJ, Rome | V13: 2 | W13: 26.47 | X13: 0 | Y13: 3.183 | Z13: 1 | AA13: =SUM(V13+X13+Z13) -> 3 | AB13: =AA13/6 -> 0.5 | AC13: =AB13*(1/3) -> 0.1666666667 | AD13: 80 | AE13: 2 | AG13: 2 | AH13: 8.89 | AI13: 2 | AJ13: =SUM(AE13,AG13,AI13) -> 6 | AK13: =AJ13/6 -> 1 | AL13: =AK13*(1/3) -> 0.3333333333
A14: Australia | C14: =(T14+AC14+AL14)*10 -> 7.5 | D14: Intensive interpretation | E14: 2 | F14: 73 | G14: 1 | H14: One proto-state, one secessionist movement | I14: 0 | J14: 0.01 | K14: 2 | L14: 22.7 | M14: 2 | N14: 95 | O14: 2 | R14: =SUM(E14+G14+I14+K14+M14+O14) -> 9 | S14: =R14/12 -> 0.75 | T14: =S14*(1/3) -> 0.25 | U14: ICJ, Rome | V14: 2 | W14: 36.26 | X14: 0 | Y14: 3.866 | Z14: 2 | AA14: =SUM(V14+X14+Z14) -> 4 | AB14: =AA14/6 -> 0.6666666667 | AC14: =AB14*(1/3) -> 0.2222222222 | AD14: 65 | AE14: 2 | AG14: 2 | AH14: 7.78 | AI14: 1 | AJ14: =SUM(AE14,AG14,AI14) -> 5 | AK14: =AJ14/6 -> 0.8333333333 | AL14: =AK14*(1/3) -> 0.2777777778
A15: New Zealand | C15: =(T15+AC15+AL15)*10 -> 8.611111111 | D15: Intensive interpretation | E15: 2 | F15: 77 | G15: 1 | H15: One secessionist movement | I15: 1 | J15: 0.39 | K15: 1 | L15: 17.5 | M15: 2 | N15: 99 | O15: 2 | R15: =SUM(E15+G15+I15+K15+M15+O15) -> 9 | S15: =R15/12 -> 0.75 | T15: =S15*(1/3) -> 0.25 | U15: ICJ, Rome | V15: 2 | W15: 50.55 | X15: 1 | Y15: 3.946 | Z15: 2 | AA15: =SUM(V15+X15+Z15) -> 5 | AB15: =AA15/6 -> 0.8333333333 | AC15: =AB15*(1/3) -> 0.2777777778 | AD15: 77 | AE15: 2 | AG15: 2 | AH15: 9.44 | AI15: 2 | AJ15: =SUM(AE15,AG15,AI15) -> 6 | AK15: =AJ15/6 -> 1 | AL15: =AK15*(1/3) -> 0.3333333333
A16: United States (USA) | C16: =(T16+AC16+AL16)*10 -> 5.833333333 | D16: Intensive interpretation | E16: 2 | F16: 49 | G16: 0 | H16: Multiple proto-states, multiple secessionist movements | I16: 0 | J16: 0.23 | K16: 1 | L16: 46.6 | M16: 1 | N16: 83 | O16: 1 | R16: =SUM(E16+G16+I16+K16+M16+O16) -> 5 | S16: =R16/12 -> 0.4166666667 | T16: =S16*(1/3) -> 0.1388888889 | V16: 0 | W16: 38.53 | X16: 0 | Y16: 3.829 | Z16: 2 | AA16: =SUM(V16+X16+Z16) -> 2 | AB16: =AA16/6 -> 0.3333333333 | AC16: =AB16*(1/3) -> 0.1111111111 | AD16: 73 | AE16: 2 | AG16: 2 | AH16: 8.89 | AI16: 2 | AJ16: =SUM(AE16,AG16,AI16) -> 6 | AK16: =AJ16/6 -> 1 | AL16: =AK16*(1/3) -> 0.3333333333
A17: Hong Kong | B17: NP, AAp, CP | C17: =(T17+AC17+AL17)*10 -> 3.666666667 | D17: Intensive interpretation | E17: 2 | F17: 69 | G17: 0 | I17: 2 | J17: 0.06 | K17: 2 | N17: 42 | O17: 0 | R17: =SUM(E17+G17+I17+K17+M17+O17) -> 6 | S17: =R17/10 -> 0.6 | T17: =S17*(1/3) -> 0.2 | V17: 0 | Y17: 0.634 | Z17: 0 | AA17: =SUM(V17+X17+Z17) -> 0 | AB17: =AA17/4 -> 0 | AC17: =AB17*(1/3) -> 0 | AG17: 2 | AH17: 5.56 | AI17: 0 | AJ17: =SUM(AE17,AG17,AI17) -> 2 | AK17: =AJ17/4 -> 0.5 | AL17: =AK17*(1/3) -> 0.1666666667
A18: South Korea | C18: =(T18+AC18+AL18)*10 -> 6.111111111 | D18: Intensive interpretation | E18: 2 | F18: 79 | G18: 1 | I18: 2 | J18: 0 | K18: 2 | L18: 32.5 | M18: 2 | N18: 83 | O18: 1 | R18: =SUM(E18+G18+I18+K18+M18+O18) -> 10 | S18: =R18/12 -> 0.8333333333 | T18: =S18*(1/3) -> 0.2777777778 | U18: Rome | V18: 1 | W18: 24.19 | X18: 0 | Y18: 2.868 | Z18: 1 | AA18: =SUM(V18+X18+Z18) -> 2 | AB18: =AA18/6 -> 0.3333333333 | AC18: =AB18*(1/3) -> 0.1111111111 | AD18: 56 | AE18: 1 | AG18: 2 | AH18: 7.22 | AI18: 1 | AJ18: =SUM(AE18,AG18,AI18) -> 4 | AK18: =AJ18/6 -> 0.6666666667 | AL18: =AK18*(1/3) -> 0.2222222222
A19: Taiwan | B19: NP, AAP, CP | C19: =(T19+AC19+AL19)*10 -> 6.833333333 | D19: Intensive interpretation | E19: 2 | F19: 71 | G19: 1 | I19: 2 | J19: 0.25 | K19: 1 | N19: 94 | O19: 2 | R19: =SUM(E19+G19+I19+K19+M19+O19) -> 8 | S19: =R19/10 -> 0.8 | T19: =S19*(1/3) -> 0.2666666667 | V19: 0 | Y19: 3.983 | Z19: 2 | AA19: =SUM(V19+X19+Z19) -> 2 | AB19: =AA19/4 -> 0.5 | AC19: =AB19*(1/3) -> 0.1666666667 | AG19: 2 | AH19: 7.78 | AI19: 1 | AJ19: =SUM(AE19,AG19,AI19) -> 3 | AK19: =AJ19/4 -> 0.75 | AL19: =AK19*(1/3) -> 0.25
A20: Mongolia | B20: AAP, CP | C20: =(T20+AC20+AL20)*10 -> 5.277777778 | D20: Intensive interpretation | E20: 2 | F20: 59 | G20: 0 | I20: 2 | J20: 0.31 | K20: 1 | L20: 51.6 | M20: 1 | N20: 84 | O20: 1 | R20: =SUM(E20+G20+I20+K20+M20+O20) -> 7 | S20: =R20/12 -> 0.5833333333 | T20: =S20*(1/3) -> 0.1944444444 | V20: 0 | Y20: 2.598 | Z20: 1 | AA20: =SUM(V20+X20+Z20) -> 1 | AB20: =AA20/4 -> 0.25 | AC20: =AB20*(1/3) -> 0.08333333333 | AG20: 2 | AH20: 6.11 | AI20: 1 | AJ20: =SUM(AE20,AG20,AI20) -> 3 | AK20: =AJ20/4 -> 0.75 | AL20: =AK20*(1/3) -> 0.25
A21: China | C21: =(T21+AC21+AL21)*10 -> 2.777777778 | D21: Intensive interpretation | E21: 2 | F21: 78 | G21: 1 | H21: Two proto-states, multiple secessionist movements | I21: 0 | J21: 0.14 | K21: 2 | L21: 66.9 | M21: 1 | N21: 9 | O21: 0 | R21: =SUM(E21+G21+I21+K21+M21+O21) -> 6 | S21: =R21/12 -> 0.5 | T21: =S21*(1/3) -> 0.1666666667 | V21: 0 | W21: 38.8 | X21: 0 | Y21: 1.031 | Z21: 0 | AA21: =SUM(V21+X21+Z21) -> 0 | AB21: =AA21/6 -> 0 | AC21: =AB21*(1/3) -> 0 | AD21: 32 | AE21: 0 | AG21: 2 | AH21: 2.78 | AI21: 0 | AJ21: =SUM(AE21,AG21,AI21) -> 2 | AK21: =AJ21/6 -> 0.3333333333 | AL21: =AK21*(1/3) -> 0.1111111111
A22: Japan | C22: =(T22+AC22+AL22)*10 -> 7.5 | D22: Intensive interpretation | E22: 2 | F22: 75 | G22: 1 | I22: 2 | J22: 0.01 | K22: 2 | L22: 31 | M22: 2 | N22: 96 | O22: 2 | R22: =SUM(E22+G22+I22+K22+M22+O22) -> 11 | S22: =R22/12 -> 0.9166666667 | T22: =S22*(1/3) -> 0.3055555556 | U22: ICJ, Rome | V22: 2 | W22: 40.85 | X22: 0 | Y22: 3.507 | Z22: 2 | AA22: =SUM(V22+X22+Z22) -> 4 | AB22: =AA22/6 -> 0.6666666667 | AC22: =AB22*(1/3) -> 0.2222222222 | AD22: 47 | AE22: 1 | AG22: 2 | AH22: 6.67 | AI22: 1 | AJ22: =SUM(AE22,AG22,AI22) -> 4 | AK22: =AJ22/6 -> 0.6666666667 | AL22: =AK22*(1/3) -> 0.2222222222
A23: Czech Republic | C23: =(T23+AC23+AL23)*10 -> 6.944444444 | D23: Intensive interpretation | E23: 2 | F23: 79 | G23: 1 | I23: 2 | J23: 0.06 | K23: 2 | L23: 39.9 | M23: 2 | N23: 92 | O23: 2 | R23: =SUM(E23+G23+I23+K23+M23+O23) -> 11 | S23: =R23/12 -> 0.9166666667 | T23: =S23*(1/3) -> 0.3055555556 | U23: Rome | V23: 1 | W23: 44.16 | X23: 0 | Y23: 3.608 | Z23: 2 | AA23: =SUM(V23+X23+Z23) -> 3 | AB23: =AA23/6 -> 0.5 | AC23: =AB23*(1/3) -> 0.1666666667 | AD23: 50 | AE23: 1 | AG23: 2 | AH23: 6.67 | AI23: 1 | AJ23: =SUM(AE23,AG23,AI23) -> 4 | AK23: =AJ23/6 -> 0.6666666667 | AL23: =AK23*(1/3) -> 0.2222222222
A24: Lithuania | C24: =(T24+AC24+AL24)*10 -> 6.944444444 | D24: Intensive interpretation | E24: 2 | F24: 77 | G24: 1 | I24: 2 | J24: 0.29 | K24: 1 | L24: 38.6 | M24: 2 | N24: 89 | O24: 1 | R24: =SUM(E24+G24+I24+K24+M24+O24) -> 9 | S24: =R24/12 -> 0.75 | T24: =S24*(1/3) -> 0.25 | U24: ICJ, Rome | V24: 2 | W24: 59.21 | X24: 1 | Y24: 3.6 | Z24: 2 | AA24: =SUM(V24+X24+Z24) -> 5 | AB24: =AA24/6 -> 0.8333333333 | AC24: =AB24*(1/3) -> 0.2777777778 | AD24: 37 | AE24: 0 | AG24: 2 | AH24: 7.22 | AI24: 1 | AJ24: =SUM(AE24,AG24,AI24) -> 3 | AK24: =AJ24/6 -> 0.5 | AL24: =AK24*(1/3) -> 0.1666666667
A25: Latvia | C25: =(T25+AC25+AL25)*10 -> 6.388888889 | D25: Intensive interpretation | E25: 2 | F25: 81 | G25: 1 | I25: 2 | J25: 0.51 | K25: 0 | L25: 42.8 | M25: 1 | N25: 88 | O25: 1 | R25: =SUM(E25+G25+I25+K25+M25+O25) -> 7 | S25: =R25/12 -> 0.5833333333 | T25: =S25*(1/3) -> 0.1944444444 | U25: ICJ, Rome | V25: 2 | W25: 56.81 | X25: 1 | Y25: 3.699 | Z25: 2 | AA25: =SUM(V25+X25+Z25) -> 5 | AB25: =AA25/6 -> 0.8333333333 | AC25: =AB25*(1/3) -> 0.2777777778 | AD25: 37 | AE25: 0 | AG25: 2 | AH25: 6.11 | AI25: 1 | AJ25: =SUM(AE25,AG25,AI25) -> 3 | AK25: =AJ25/6 -> 0.5 | AL25: =AK25*(1/3) -> 0.1666666667
A26: Estonia | C26: =(T26+AC26+AL26)*10 -> 8.611111111 | D26: Intensive interpretation | E26: 2 | F26: 89 | G26: 2 | I26: 2 | J26: 0.48 | K26: 1 | L26: 37.7 | M26: 2 | N26: 94 | O26: 2 | R26: =SUM(E26+G26+I26+K26+M26+O26) -> 11 | S26: =R26/12 -> 0.9166666667 | T26: =S26*(1/3) -> 0.3055555556 | U26: ICJ, Rome | V26: 2 | W26: 65.14 | X26: 2 | Y26: 3.904 | Z26: 2 | AA26: =SUM(V26+X26+Z26) -> 6 | AB26: =AA26/6 -> 1 | AC26: =AB26*(1/3) -> 0.3333333333 | AD26: 50 | AE26: 1 | AG26: 2 | AH26: 6.67 | AI26: 1 | AJ26: =SUM(AE26,AG26,AI26) -> 4 | AK26: =AJ26/6 -> 0.6666666667 | AL26: =AK26*(1/3) -> 0.2222222222
A27: Slovenia | C27: =(T27+AC27+AL27)*10 -> 7.222222222 | D27: Intensive interpretation | E27: 2 | F27: 88 | G27: 2 | I27: 2 | J27: 0.15 | K27: 2 | L27: 27.7 | M27: 2 | N27: 95 | O27: 2 | R27: =SUM(E27+G27+I27+K27+M27+O27) -> 12 | S27: =R27/12 -> 1 | T27: =S27*(1/3) -> 0.3333333333 | U27: Rome | V27: 1 | W27: 48.16 | X27: 0 | Y27: 4.02 | Z27: 2 | AA27: =SUM(V27+X27+Z27) -> 3 | AB27: =AA27/6 -> 0.5 | AC27: =AB27*(1/3) -> 0.1666666667 | AD27: 48 | AE27: 1 | AG27: 2 | AH27: 7.22 | AI27: 1 | AJ27: =SUM(AE27,AG27,AI27) -> 4 | AK27: =AJ27/6 -> 0.6666666667 | AL27: =AK27*(1/3) -> 0.2222222222
A28: Spain | C28: =(T28+AC28+AL28)*10 -> 7.222222222 | D28: Intensive interpretation | E28: 2 | F28: 68 | G28: 0 | H28: Multiple proto-states, multiple secessionist movements | I28: 0 | J28: 0.28 | K28: 1 | L28: 44.4 | M28: 1 | N28: 90 | O28: 2 | R28: =SUM(E28+G28+I28+K28+M28+O28) -> 6 | S28: =R28/12 -> 0.5 | T28: =S28*(1/3) -> 0.1666666667 | U28: ICJ, Rome | V28: 2 | W28: 58.59 | X28: 1 | Y28: 3.663 | Z28: 2 | AA28: =SUM(V28+X28+Z28) -> 5 | AB28: =AA28/6 -> 0.8333333333 | AC28: =AB28*(1/3) -> 0.2777777778 | AD28: 60 | AE28: 2 | AG28: 2 | AH28: 7.22 | AI28: 1 | AJ28: =SUM(AE28,AG28,AI28) -> 5 | AK28: =AJ28/6 -> 0.8333333333 | AL28: =AK28*(1/3) -> 0.2777777778
A29: Slovakia | C29: =(T29+AC29+AL29)*10 -> 6.388888889 | D29: Intensive interpretation | E29: 2 | F29: 88 | G29: 2 | I29: 2 | J29: 0.23 | K29: 1 | L29: 37.1 | M29: 2 | N29: 90 | O29: 2 | R29: =SUM(E29+G29+I29+K29+M29+O29) -> 11 | S29: =R29/12 -> 0.9166666667 | T29: =S29*(1/3) -> 0.3055555556 | U29: ICJ, Rome | V29: 2 | W29: 50.12 | X29: 1 | Y29: 2.61 | Z29: 1 | AA29: =SUM(V29+X29+Z29) -> 4 | AB29: =AA29/6 -> 0.6666666667 | AC29: =AB29*(1/3) -> 0.2222222222 | AD29: 39 | AE29: 0 | AG29: 2 | AH29: 5.56 | AI29: 0 | AJ29: =SUM(AE29,AG29,AI29) -> 2 | AK29: =AJ29/6 -> 0.3333333333 | AL29: =AK29*(1/3) -> 0.1111111111
A30: Italy | C30: =(T30+AC30+AL30)*10 -> 6.944444444 | D30: Intensive interpretation | E30: 2 | F30: 57 | G30: 0 | H30: One proto-state, multiple secessionist movements | I30: 0 | J30: 0.08 | K30: 2 | L30: 43.4 | M30: 1 | N30: 90 | O30: 2 | R30: =SUM(E30+G30+I30+K30+M30+O30) -> 7 | S30: =R30/12 -> 0.5833333333 | T30: =S30*(1/3) -> 0.1944444444 | U30: ICJ, Rome | V30: 2 | W30: 52.9 | X30: 1 | Y30: 4.154 | Z30: 2 | AA30: =SUM(V30+X30+Z30) -> 5 | AB30: =AA30/6 -> 0.8333333333 | AC30: =AB30*(1/3) -> 0.2777777778 | AD30: 58 | AE30: 1 | AG30: 2 | AH30: 7.22 | AI30: 1 | AJ30: =SUM(AE30,AG30,AI30) -> 4 | AK30: =AJ30/6 -> 0.6666666667 | AL30: =AK30*(1/3) -> 0.2222222222
A31: France | C31: =(T31+AC31+AL31)*10 -> 6.388888889 | D31: Intensive interpretation | E31: 2 | F31: 82 | G31: 1 | H31: Multiple proto-states, multiple secessionist movements | I31: 0 | J31: 0.38 | K31: 1 | L31: 30.9 | M31: 2 | N31: 89 | O31: 1 | R31: =SUM(E31+G31+I31+K31+M31+O31) -> 7 | S31: =R31/12 -> 0.5833333333 | T31: =S31*(1/3) -> 0.1944444444 | U31: Rome | V31: 1 | W31: 52.97 | X31: 1 | Y31: 3.974 | Z31: 2 | AA31: =SUM(V31+X31+Z31) -> 4 | AB31: =AA31/6 -> 0.6666666667 | AC31: =AB31*(1/3) -> 0.2222222222 | AD31: 56 | AE31: 1 | AG31: 2 | AH31: 7.78 | AI31: 1 | AJ31: =SUM(AE31,AG31,AI31) -> 4 | AK31: =AJ31/6 -> 0.6666666667 | AL31: =AK31*(1/3) -> 0.2222222222
A32: Austria | C32: =(T32+AC32+AL32)*10 -> 8.055555556 | D32: Intensive interpretation | E32: 2 | F32: 81 | G32: 1 | I32: 2 | J32: 0.01 | K32: 2 | L32: 25.4 | M32: 2 | N32: 93 | O32: 2 | R32: =SUM(E32+G32+I32+K32+M32+O32) -> 11 | S32: =R32/12 -> 0.9166666667 | T32: =S32*(1/3) -> 0.3055555556 | U32: ICJ, Rome | V32: 2 | W32: 51.56 | X32: 1 | Y32: 3.294 | Z32: 1 | AA32: =SUM(V32+X32+Z32) -> 4 | AB32: =AA32/6 -> 0.6666666667 | AC32: =AB32*(1/3) -> 0.2222222222 | AD32: 46 | AE32: 1 | AG32: 2 | AH32: 8.89 | AI32: 2 | AJ32: =SUM(AE32,AG32,AI32) -> 5 | AK32: =AJ32/6 -> 0.8333333333 | AL32: =AK32*(1/3) -> 0.2777777778
A33: Belgium | B33: NP | C33: =(T33+AC33+AL33)*10 -> 6.444444444 | D33: Intensive interpretation | E33: 2 | H33: Two proto-states, multiple secessionist movements | I33: 0 | J33: 0.54 | K33: 0 | L33: 31.9 | M33: 2 | N33: 96 | O33: 2 | R33: =SUM(E33+G33+I33+K33+M33+O33) -> 6 | S33: =R33/10 -> 0.6 | T33: =S33*(1/3) -> 0.2 | U33: ICJ, Rome | V33: 2 | W33: 48.38 | X33: 0 | Y33: 4.708 | Z33: 2 | AA33: =SUM(V33+X33+Z33) -> 4 | AB33: =AA33/6 -> 0.6666666667 | AC33: =AB33*(1/3) -> 0.2222222222 | AD33: 69 | AE33: 2 | AG33: 2 | AH33: 5 | AI33: 0 | AJ33: =SUM(AE33,AG33,AI33) -> 4 | AK33: =AJ33/6 -> 0.6666666667 | AL33: =AK33*(1/3) -> 0.2222222222
A34: Croatia | C34: =(T34+AC34+AL34)*10 -> 5.833333333 | D34: Intensive interpretation | E34: 2 | F34: 73 | G34: 1 | H34: One secessionist movement | I34: 1 | J34: 0.21 | K34: 1 | L34: 49.3 | M34: 1 | N34: 84 | O34: 1 | R34: =SUM(E34+G34+I34+K34+M34+O34) -> 7 | S34: =R34/12 -> 0.5833333333 | T34: =S34*(1/3) -> 0.1944444444 | U34: Rome | V34: 1 | W34: 52.04 | X34: 2 | Y34: 3.36 | Z34: 1 | AA34: =SUM(V34+X34+Z34) -> 4 | AB34: =AA34/6 -> 0.6666666667 | AC34: =AB34*(1/3) -> 0.2222222222 | AD34: 39 | AE34: 0 | AG34: 2 | AH34: 6.11 | AI34: 1 | AJ34: =SUM(AE34,AG34,AI34) -> 3 | AK34: =AJ34/6 -> 0.5 | AL34: =AK34*(1/3) -> 0.1666666667
A35: Portugal | C35: =(T35+AC35+AL35)*10 -> 9.166666667 | D35: Intensive interpretation | E35: 2 | F35: 84 | G35: 1 | H35: Multiple secessionist movements | I35: 0 | J35: 0.05 | K35: 2 | L35: 27.5 | M35: 2 | N35: 96 | O35: 2 | R35: =SUM(E35+G35+I35+K35+M35+O35) -> 9 | S35: =R35/12 -> 0.75 | T35: =S35*(1/3) -> 0.25 | U35: ICJ, Rome | V35: 2 | W35: 61.55 | X35: 3 | Y35: 4.169 | Z35: 2 | AA35: =SUM(V35+X35+Z35) -> 7 | AB35: =AA35/6 -> 1.166666667 | AC35: =AB35*(1/3) -> 0.3888888889 | AD35: 81 | AE35: 2 | AG35: 2 | AH35: 6.67 | AI35: 1 | AJ35: =SUM(AE35,AG35,AI35) -> 5 | AK35: =AJ35/6 -> 0.8333333333 | AL35: =AK35*(1/3) -> 0.2777777778
A36: Poland | C36: =(T36+AC36+AL36)*10 -> 5.555555556 | D36: Intensive interpretation | E36: 2 | F36: 88 | G36: 2 | I36: 2 | J36: 0.15 | K36: 2 | L36: 42.2 | M36: 1 | N36: 81 | O36: 1 | R36: =SUM(E36+G36+I36+K36+M36+O36) -> 10 | S36: =R36/12 -> 0.8333333333 | T36: =S36*(1/3) -> 0.2777777778 | U36: ICJ, Rome | V36: 2 | W36: 37.94 | X36: 0 | Y36: 1.858 | Z36: 0 | AA36: =SUM(V36+X36+Z36) -> 2 | AB36: =AA36/6 -> 0.3333333333 | AC36: =AB36*(1/3) -> 0.1111111111 | AD36: 40 | AE36: 0 | AG36: 2 | AH36: 6.67 | AI36: 1 | AJ36: =SUM(AE36,AG36,AI36) -> 3 | AK36: =AJ36/6 -> 0.5 | AL36: =AK36*(1/3) -> 0.1666666667
A37: Thailand | B37: NP, CP | C37: =(T37+AC37+AL37)*10 -> 4.166666667 | D37: Intensive interpretation | E37: 2 | H37: One secessionist movement | I37: 1 | J37: 0.5 | K37: 1 | L37: 70 | M37: 1 | N37: 30 | O37: 0 | R37: =SUM(E37+G37+I37+K37+M37+O37) -> 5 | S37: =R37/10 -> 0.5 | T37: =S37*(1/3) -> 0.1666666667 | V37: 0 | W37: 47.23 | X37: 0 | Y37: 0.964 | Z37: 0 | AA37: =SUM(V37+X37+Z37) -> 0 | AB37: =AA37/6 -> 0 | AC37: =AB37*(1/3) -> 0 | AG37: 2 | AH37: 6.67 | AI37: 1 | AJ37: =SUM(AE37,AG37,AI37) -> 3 | AK37: =AJ37/4 -> 0.75 | AL37: =AK37*(1/3) -> 0.25
A38: Israel | B38: NP, AAP | C38: =(T38+AC38+AL38)*10 -> 6.111111111 | D38: Intensive interpretation | E38: 2 | H38: Two proto-states, one secessionist movement | I38: 0 | J38: 0.28 | K38: 1 | L38: 42.6 | M38: 1 | N38: 77 | O38: 1 | R38: =SUM(E38+G38+I38+K38+M38+O38) -> 5 | S38: =R38/10 -> 0.5 | T38: =S38*(1/3) -> 0.1666666667 | V38: 0 | Y38: 3.777 | Z38: 2 | AA38: =SUM(V38+X38+Z38) -> 2 | AB38: =AA38/4 -> 0.5 | AC38: =AB38*(1/3) -> 0.1666666667 | AD38: 49 | AE38: 1 | AG38: 2 | AH38: 10 | AI38: 2 | AJ38: =SUM(AE38,AG38,AI38) -> 5 | AK38: =AJ38/6 -> 0.8333333333 | AL38: =AK38*(1/3) -> 0.2777777778
A39: South Africa | C39: =(T39+AC39+AL39)*10 -> 5.777777778 | D39: Intensive interpretation | E39: 2 | H39: Multiple proto-states, two secessionist movements | I39: 0 | J39: 0.73 | K39: 0 | L39: 72 | M39: 1 | N39: 79 | O39: 1 | R39: =SUM(E39+G39+I39+K39+M39+O39) -> 4 | S39: =R39/10 -> 0.4 | T39: =S39*(1/3) -> 0.1333333333 | U39: Rome | V39: 1 | W39: 45.69 | X39: 0 | Y39: 3.75 | Z39: 2 | AA39: =SUM(V39+X39+Z39) -> 3 | AB39: =AA39/6 -> 0.5 | AC39: =AB39*(1/3) -> 0.1666666667 | AD39: 48 | AE39: 1 | AG39: 2 | AH39: 8.33 | AI39: 2 | AJ39: =SUM(AE39,AG39,AI39) -> 5 | AK39: =AJ39/6 -> 0.8333333333 | AL39: =AK39*(1/3) -> 0.2777777778
A40: Vietnam | B40: CP | C40: =(T40+AC40+AL40)*10 -> 3.888888889 | D40: Intensive interpretation | E40: 2 | F40: 81 | G40: 1 | H40: One secessionist movement | I40: 1 | J40: 0.24 | K40: 1 | L40: 60.9 | M40: 1 | N40: 19 | O40: 0 | R40: =SUM(E40+G40+I40+K40+M40+O40) -> 6 | S40: =R40/12 -> 0.5 | T40: =S40*(1/3) -> 0.1666666667 | V40: 0 | W40: 48.31 | X40: 0 | Y40: 3.05 | Z40: 1 | AA40: =SUM(V40+X40+Z40) -> 1 | AB40: =AA40/6 -> 0.1666666667 | AC40: =AB40*(1/3) -> 0.05555555556 | AG40: 2 | AH40: 3.89 | AI40: 0 | AJ40: =SUM(AE40,AG40,AI40) -> 2 | AK40: =AJ40/4 -> 0.5 | AL40: =AK40*(1/3) -> 0.1666666667
A41: Bulgaria | C41: =(T41+AC41+AL41)*10 -> 6.388888889 | D41: Intensive interpretation | E41: 2 | F41: 86 | G41: 2 | I41: 2 | J41: 0.35 | K41: 1 | L41: 51.6 | M41: 1 | N41: 79 | O41: 1 | R41: =SUM(E41+G41+I41+K41+M41+O41) -> 9 | S41: =R41/12 -> 0.75 | T41: =S41*(1/3) -> 0.25 | U41: ICJ, Rome | V41: 2 | W41: 49.15 | X41: 0 | Y41: 4.433 | Z41: 2 | AA41: =SUM(V41+X41+Z41) -> 4 | AB41: =AA41/6 -> 0.6666666667 | AC41: =AB41*(1/3) -> 0.2222222222 | AD41: 40 | AE41: 0 | AG41: 2 | AH41: 7.22 | AI41: 1 | AJ41: =SUM(AE41,AG41,AI41) -> 3 | AK41: =AJ41/6 -> 0.5 | AL41: =AK41*(1/3) -> 0.1666666667
A42: Russia | C42: =(T42+AC42+AL42)*10 -> 1.944444444 | D42: Intensive interpretation | E42: 1 | F42: 55 | G42: 0 | H42: One proto-state, multiple secessionist movements | I42: 0 | J42: 0.24 | K42: 1 | L42: 72.6 | M42: 1 | N42: 16 | O42: 0 | R42: =SUM(E42+G42+I42+K42+M42+O42) -> 3 | S42: =R42/12 -> 0.25 | T42: =S42*(1/3) -> 0.08333333333 | V42: 0 | W42: 25.28 | X42: 0 | Y42: 0.479 | Z42: 0 | AA42: =SUM(V42+X42+Z42) -> 0 | AB42: =AA42/6 -> 0 | AC42: =AB42*(1/3) -> 0 | AD42: 31 | AE42: 0 | AF42: 2021, 2020, 2019, 2018, 2017, 2016, 2015, 2014, 2014, 2014, 2008 | AG42: 2 | AH42: 4.44 | AI42: 0 | AJ42: =SUM(AE42,AG42,AI42) -> 2 | AK42: =AJ42/6 -> 0.3333333333 | AL42: =AK42*(1/3) -> 0.1111111111
A43: Ukraine | B43: AAP | C43: =(T43+AC43+AL43)*10 -> 4.166666667 | D43: Intensive interpretation | E43: 1 | F43: 54 | G43: 0 | H43: One secessionist movement | I43: 1 | J43: 0.33 | K43: 1 | L43: 68.6 | M43: 1 | N43: 50 | O43: 0 | R43: =SUM(E43+G43+I43+K43+M43+O43) -> 4 | S43: =R43/12 -> 0.3333333333 | T43: =S43*(1/3) -> 0.1111111111 | V43: 0 | Y43: 3.414 | Z43: 1 | AA43: =SUM(V43+X43+Z43) -> 1 | AB43: =AA43/4 -> 0.25 | AC43: =AB43*(1/3) -> 0.08333333333 | AD43: 48 | AE43: 1 | AG43: 2 | AH43: 6.67 | AI43: 1 | AJ43: =SUM(AE43,AG43,AI43) -> 4 | AK43: =AJ43/6 -> 0.6666666667 | AL43: =AK43*(1/3) -> 0.2222222222
A44: Belarus | B44: CP | C44: =(T44+AC44+AL44)*10 -> 3.055555556 | D44: Intensive interpretation | E44: 1 | F44: 51 | G44: 0 | I44: 2 | J44: 0.2 | K44: 1 | L44: 68.7 | M44: 1 | N44: 8 | O44: 0 | R44: =SUM(E44+G44+I44+K44+M44+O44) -> 5 | S44: =R44/12 -> 0.4166666667 | T44: =S44*(1/3) -> 0.1388888889 | V44: 0 | W44: 43.69 | X44: 0 | Y44: 0.323 | Z44: 0 | AA44: =SUM(V44+X44+Z44) -> 0 | AB44: =AA44/6 -> 0 | AC44: =AB44*(1/3) -> 0 | AG44: 2 | AH44: 3.89 | AI44: 0 | AJ44: =SUM(AE44,AG44,AI44) -> 2 | AK44: =AJ44/4 -> 0.5 | AL44: =AK44*(1/3) -> 0.1666666667
A45: Greece | C45: =(T45+AC45+AL45)*10 -> 6.666666667 | D45: Intensive interpretation | E45: 1 | F45: 89 | G45: 2 | I45: 2 | J45: 0.18 | K45: 1 | L45: 55.8 | M45: 1 | N45: 86 | O45: 1 | R45: =SUM(E45+G45+I45+K45+M45+O45) -> 8 | S45: =R45/12 -> 0.6666666667 | T45: =S45*(1/3) -> 0.2222222222 | U45: ICJ, Rome | V45: 2 | W45: 57.52 | X45: 1 | Y45: 2.812 | Z45: 1 | AA45: =SUM(V45+X45+Z45) -> 4 | AB45: =AA45/6 -> 0.6666666667 | AC45: =AB45*(1/3) -> 0.2222222222 | AD45: 46 | AE45: 1 | AG45: 2 | AH45: 6.11 | AI45: 1 | AJ45: =SUM(AE45,AG45,AI45) -> 4 | AK45: =AJ45/6 -> 0.6666666667 | AL45: =AK45*(1/3) -> 0.2222222222
A46: North Macedonia | B46: AAP* | C46: =(T46+AC46+AL46)*10 -> 5.277777778 | D46: Intensive interpretation | E46: 1 | F46: 39 | G46: 0 | I46: 2 | J46: 0.47 | K46: 1 | L46: 62.6 | M46: 1 | N46: 68 | O46: 0 | R46: =SUM(E46+G46+I46+K46+M46+O46) -> 5 | S46: =R46/12 -> 0.4166666667 | T46: =S46*(1/3) -> 0.1388888889 | U46: Rome | V46: 1 | Y46: 2.617 | Z46: 1 | AA46: =SUM(V46+X46+Z46) -> 2 | AB46: =AA46/4 -> 0.5 | AC46: =AB46*(1/3) -> 0.1666666667 | AD46: 42 | AE46: 1 | AG46: 2 | AH46: 6.11 | AI46: 1 | AJ46: =SUM(AE46,AG46,AI46) -> 4 | AK46: =AJ46/6 -> 0.6666666667 | AL46: =AK46*(1/3) -> 0.2222222222
A47: Brazil | C47: =(T47+AC47+AL47)*10 -> 6.111111111 | D47: Intensive interpretation | E47: 2 | F47: 16 | G47: 0 | I47: 2 | J47: 0.01 | K47: 2 | L47: 73.9 | M47: 1 | N47: 72 | O47: 1 | R47: =SUM(E47+G47+I47+K47+M47+O47) -> 8 | S47: =R47/12 -> 0.6666666667 | T47: =S47*(1/3) -> 0.2222222222 | U47: Rome | V47: 1 | W47: 48.39 | X47: 0 | Y47: 2.82 | Z47: 1 | AA47: =SUM(V47+X47+Z47) -> 2 | AB47: =AA47/6 -> 0.3333333333 | AC47: =AB47*(1/3) -> 0.1111111111 | AD47: 64 | AE47: 2 | AG47: 2 | AH47: 6.11 | AI47: 1 | AJ47: =SUM(AE47,AG47,AI47) -> 5 | AK47: =AJ47/6 -> 0.8333333333 | AL47: =AK47*(1/3) -> 0.2777777778
A48: Argentina | C48: =(T48+AC48+AL48)*10 -> 5.555555556 | D48: Intensive interpretation | E48: 2 | F48: 60 | G48: 0 | I48: 2 | J48: 0 | K48: 2 | L48: 47.9 | M48: 1 | N48: 85 | O48: 1 | R48: =SUM(E48+G48+I48+K48+M48+O48) -> 8 | S48: =R48/12 -> 0.6666666667 | T48: =S48*(1/3) -> 0.2222222222 | U48: Rome | V48: 1 | W48: 41.19 | X48: 0 | Y48: 2.455 | Z48: 1 | AA48: =SUM(V48+X48+Z48) -> 2 | AB48: =AA48/6 -> 0.3333333333 | AC48: =AB48*(1/3) -> 0.1111111111 | AD48: 58 | AE48: 1 | AG48: 2 | AH48: 7.22 | AI48: 1 | AJ48: =SUM(AE48,AG48,AI48) -> 4 | AK48: =AJ48/6 -> 0.6666666667 | AL48: =AK48*(1/3) -> 0.2222222222
A49: Uruguay | B49: AAP, CP | C49: =(T49+AC49+AL49)*10 -> 8.333333333 | D49: Intensive interpretation | E49: 2 | F49: 87 | G49: 2 | I49: 2 | J49: 0 | K49: 2 | L49: 35.2 | M49: 2 | N49: 96 | O49: 2 | R49: =SUM(E49+G49+I49+K49+M49+O49) -> 12 | S49: =R49/12 -> 1 | T49: =S49*(1/3) -> 0.3333333333 | U49: ICJ, Rome | V49: 2 | Y49: 3.142 | Z49: 1 | AA49: =SUM(V49+X49+Z49) -> 3 | AB49: =AA49/4 -> 0.75 | AC49: =AB49*(1/3) -> 0.25 | AG49: 2 | AH49: 7.22 | AI49: 1 | AJ49: =SUM(AE49,AG49,AI49) -> 3 | AK49: =AJ49/4 -> 0.75 | AL49: =AK49*(1/3) -> 0.25
A50: Mexico | C50: =(T50+AC50+AL50)*10 -> 5.277777778 | D50: Intensive interpretation | E50: 2 | F50: 67 | G50: 0 | I50: 2 | J50: 0.54 | K50: 0 | L50: 70.3 | M50: 1 | N50: 60 | O50: 0 | R50: =SUM(E50+G50+I50+K50+M50+O50) -> 5 | S50: =R50/12 -> 0.4166666667 | T50: =S50*(1/3) -> 0.1388888889 | U50: ICJ, Rome | V50: 2 | W50: 51.77 | X50: 1 | Y50: 1.679 | Z50: 0 | AA50: =SUM(V50+X50+Z50) -> 3 | AB50: =AA50/6 -> 0.5 | AC50: =AB50*(1/3) -> 0.1666666667 | AD50: 51 | AE50: 1 | AG50: 2 | AH50: 7.22 | AI50: 1 | AJ50: =SUM(AE50,AG50,AI50) -> 4 | AK50: =AJ50/6 -> 0.6666666667 | AL50: =AK50*(1/3) -> 0.2222222222
A51: Colombia | B51: CP | C51: =(T51+AC51+AL51)*10 -> 6.388888889 | D51: Intensive interpretation | E51: 2 | F51: 62 | G51: 0 | I51: 2 | J51: 0.08 | K51: 2 | L51: 78.4 | M51: 1 | N51: 70 | O51: 1 | R51: =SUM(E51+G51+I51+K51+M51+O51) -> 8 | S51: =R51/12 -> 0.6666666667 | T51: =S51*(1/3) -> 0.2222222222 | U51: Rome | V51: 1 | W51: 54.5 | X51: 1 | Y51: 3.317 | Z51: 1 | AA51: =SUM(V51+X51+Z51) -> 3 | AB51: =AA51/6 -> 0.5 | AC51: =AB51*(1/3) -> 0.1666666667 | AG51: 2 | AH51: 6.11 | AI51: 1 | AJ51: =SUM(AE51,AG51,AI51) -> 3 | AK51: =AJ51/4 -> 0.75 | AL51: =AK51*(1/3) -> 0.25
A52: Venezuela | B52: AAP, CP | C52: =(T52+AC52+AL52)*10 -> 4.444444444 | D52: Intensive interpretation | E52: 2 | F52: 75 | G52: 1 | I52: 2 | J52: 0.04 | K52: 2 | L52: 91.6 | M52: 0 | N52: 15 | O52: 0 | R52: =SUM(E52+G52+I52+K52+M52+O52) -> 7 | S52: =R52/12 -> 0.5833333333 | T52: =S52*(1/3) -> 0.1944444444 | U52: Rome | V52: 1 | Y52: 0.274 | Z52: 0 | AA52: =SUM(V52+X52+Z52) -> 1 | AB52: =AA52/4 -> 0.25 | AC52: =AB52*(1/3) -> 0.08333333333 | AG52: 2 | AH52: 3.89 | AI52: 0 | AJ52: =SUM(AE52,AG52,AI52) -> 2 | AK52: =AJ52/4 -> 0.5 | AL52: =AK52*(1/3) -> 0.1666666667
A53: Kenya | B53: AAP, CP | C53: =(T53+AC53+AL53)*10 -> 5.277777778 | D53: Intensive interpretation | E53: 2 | F53: 57 | G53: 0 | I53: 2 | J53: 0.81 | K53: 0 | L53: 88.2 | M53: 0 | N53: 52 | O53: 0 | R53: =SUM(E53+G53+I53+K53+M53+O53) -> 4 | S53: =R53/12 -> 0.3333333333 | T53: =S53*(1/3) -> 0.1111111111 | U53: Rome | V53: 1 | Y53: 3.25 | Z53: 1 | AA53: =SUM(V53+X53+Z53) -> 2 | AB53: =AA53/4 -> 0.5 | AC53: =AB53*(1/3) -> 0.1666666667 | AG53: 2 | AH53: 6.67 | AI53: 1 | AJ53: =SUM(AE53,AG53,AI53) -> 3 | AK53: =AJ53/4 -> 0.75 | AL53: =AK53*(1/3) -> 0.25
A54: Ecuador | B54: AAP, CP | C54: =(T54+AC54+AL54)*10 -> 5.277777778 | D54: Intensive interpretation | E54: 2 | F54: 66 | G54: 0 | I54: 2 | J54: 0.48 | K54: 1 | L54: 69.1 | M54: 1 | N54: 70 | O54: 1 | R54: =SUM(E54+G54+I54+K54+M54+O54) -> 7 | S54: =R54/12 -> 0.5833333333 | T54: =S54*(1/3) -> 0.1944444444 | U54: Rome | V54: 1 | Y54: 1.398 | Z54: 0 | AA54: =SUM(V54+X54+Z54) -> 1 | AB54: =AA54/4 -> 0.25 | AC54: =AB54*(1/3) -> 0.08333333333 | AG54: 2 | AH54: 6.11 | AI54: 1 | AJ54: =SUM(AE54,AG54,AI54) -> 3 | AK54: =AJ54/4 -> 0.75 | AL54: =AK54*(1/3) -> 0.25
A55: Philipines | B55: CP | C55: =(T55+AC55+AL55)*10 -> 5.555555556 | D55: Intensive interpretation | E55: 2 | F55: 83 | G55: 1 | H55: Two secessionist movements | I55: 0 | J55: 0.59 | K55: 0 | L55: 80.5 | M55: 0 | N55: 58 | O55: 0 | R55: =SUM(E55+G55+I55+K55+M55+O55) -> 3 | S55: =R55/12 -> 0.25 | T55: =S55*(1/3) -> 0.08333333333 | U55: ICJ | V55: 1 | W55: 62.75 | X55: 2 | Y55: 3.36 | Z55: 1 | AA55: =SUM(V55+X55+Z55) -> 4 | AB55: =AA55/6 -> 0.6666666667 | AC55: =AB55*(1/3) -> 0.2222222222 | AG55: 2 | AH55: 7.78 | AI55: 1 | AJ55: =SUM(AE55,AG55,AI55) -> 3 | AK55: =AJ55/4 -> 0.75 | AL55: =AK55*(1/3) -> 0.25
A56: Azerbadjan | B56: AAP, CP | C56: =(T56+AC56+AL56)*10 -> 3.055555556 | D56: Intensive interpretation | E56: 2 | F56: 67 | G56: 0 | H56: Two secessionist movements | I56: 0 | J56: 0.02 | K56: 2 | L56: 73.1 | M56: 1 | N56: 9 | O56: 0 | R56: =SUM(E56+G56+I56+K56+M56+O56) -> 5 | S56: =R56/12 -> 0.4166666667 | T56: =S56*(1/3) -> 0.1388888889 | V56: 0 | Y56: 0.387 | Z56: 0 | AA56: =SUM(V56+X56+Z56) -> 0 | AB56: =AA56/4 -> 0 | AC56: =AB56*(1/3) -> 0 | AG56: 2 | AH56: 2.78 | AI56: 0 | AJ56: =SUM(AE56,AG56,AI56) -> 2 | AK56: =AJ56/4 -> 0.5 | AL56: =AK56*(1/3) -> 0.1666666667
A57: Romania | C57: =(T57+AC57+AL57)*10 -> 5.555555556 | D57: Intensive interpretation | E57: 2 | F57: 81 | G57: 1 | I57: 2 | J57: 0.3 | K57: 1 | L57: 50.8 | M57: 1 | N57: 83 | O57: 1 | R57: =SUM(E57+G57+I57+K57+M57+O57) -> 8 | S57: =R57/12 -> 0.6666666667 | T57: =S57*(1/3) -> 0.2222222222 | U57: ICJ, Rome | V57: 2 | W57: 47.09 | X57: 0 | Y57: 1.135 | Z57: 0 | AA57: =SUM(V57+X57+Z57) -> 2 | AB57: =AA57/6 -> 0.3333333333 | AC57: =AB57*(1/3) -> 0.1111111111 | AD57: 49 | AE57: 1 | AG57: 2 | AH57: 6.11 | AI57: 1 | AJ57: =SUM(AE57,AG57,AI57) -> 4 | AK57: =AJ57/6 -> 0.6666666667 | AL57: =AK57*(1/3) -> 0.2222222222
A58: India | B58: NP | C58: =(T58+AC58+AL58)*10 -> 4.888888889 | D58: Intensive interpretation | E58: 2 | H58: Multiple proto-states, multiple secessionist movements | I58: 0 | J58: 0.64 | K58: 0 | L58: 75.3 | M58: 1 | N58: 66 | O58: 0 | R58: =SUM(E58+G58+I58+K58+M58+O58) -> 3 | S58: =R58/10 -> 0.3 | T58: =S58*(1/3) -> 0.1 | U58: ICJ | V58: 1 | W58: 67.35 | X58: 2 | Y58: 2.803 | Z58: 1 | AA58: =SUM(V58+X58+Z58) -> 4 | AB58: =AA58/6 -> 0.6666666667 | AC58: =AB58*(1/3) -> 0.2222222222 | AD58: 24 | AE58: 0 | AG58: 2 | AH58: 7.22 | AI58: 1 | AJ58: =SUM(AE58,AG58,AI58) -> 3 | AK58: =AJ58/6 -> 0.5 | AL58: =AK58*(1/3) -> 0.1666666667
A59: Kyrgyzstan | B59: AP, CP | C59: =(T59+AC59+AL59)*10 -> 4.444444444 | D59: Intensive interpretation | E59: 1 | F59: 89 | G59: 2 | I59: 2 | J59: 0.37 | K59: 1 | L59: 77.1 | M59: 1 | N59: 27 | O59: 0 | R59: =SUM(E59+G59+I59+K59+M59+O59) -> 7 | S59: =R59/12 -> 0.5833333333 | T59: =S59*(1/3) -> 0.1944444444 | V59: 0 | Y59: 2.359 | Z59: 1 | AA59: =SUM(V59+X59+Z59) -> 1 | AB59: =AA59/4 -> 0.25 | AC59: =AB59*(1/3) -> 0.08333333333 | AG59: 2 | AH59: 4.44 | AI59: 0 | AJ59: =SUM(AE59,AG59,AI59) -> 2 | AK59: =AJ59/4 -> 0.5 | AL59: =AK59*(1/3) -> 0.1666666667
A60: Uzbekistan | B60: NP, AAP, CP | C60: =(T60+AC60+AL60)*10 -> 3.333333333 | D60: Intensive interpretation | E60: 1 | I60: 2 | J60: 0.36 | K60: 1 | L60: 69.6 | M60: 1 | N60: 12 | O60: 0 | R60: =SUM(E60+G60+I60+K60+M60+O60) -> 5 | S60: =R60/10 -> 0.5 | T60: =S60*(1/3) -> 0.1666666667 | V60: 0 | Y60: 1.666 | Z60: 0 | AA60: =SUM(V60+X60+Z60) -> 0 | AB60: =AA60/4 -> 0 | AC60: =AB60*(1/3) -> 0 | AG60: 2 | AH60: 2.78 | AI60: 0 | AJ60: =SUM(AE60,AG60,AI60) -> 2 | AK60: =AJ60/4 -> 0.5 | AL60: =AK60*(1/3) -> 0.1666666667
A61: Pakistan | B61: AAP, CP | C61: =(T61+AC61+AL61)*10 -> 3.888888889 | D61: Intensive interpretation | E61: 1 | F61: 82 | G61: 1 | H61: Two secessionist movements | I61: 0 | J61: 0.68 | K61: 0 | L61: 89.7 | M61: 0 | N61: 37 | O61: 0 | R61: =SUM(E61+G61+I61+K61+M61+O61) -> 2 | S61: =R61/12 -> 0.1666666667 | T61: =S61*(1/3) -> 0.05555555556 | U61: ICJ | V61: 1 | Y61: 3.034 | Z61: 1 | AA61: =SUM(V61+X61+Z61) -> 2 | AB61: =AA61/4 -> 0.5 | AC61: =AB61*(1/3) -> 0.1666666667 | AG61: 2 | AH61: 3.33 | AI61: 0 | AJ61: =SUM(AE61,AG61,AI61) -> 2 | AK61: =AJ61/4 -> 0.5 | AL61: =AK61*(1/3) -> 0.1666666667
A62: Tajikistan | B62: AAP, CP | C62: =(T62+AC62+AL62)*10 -> 4.166666667 | D62: Intensive interpretation | E62: 1 | F62: 76 | G62: 1 | I62: 2 | J62: 0.49 | K62: 1 | L62: 75 | M62: 1 | N62: 7 | O62: 0 | R62: =SUM(E62+G62+I62+K62+M62+O62) -> 6 | S62: =R62/12 -> 0.5 | T62: =S62*(1/3) -> 0.1666666667 | U62: Rome | V62: 1 | Y62: 0.744 | Z62: 0 | AA62: =SUM(V62+X62+Z62) -> 1 | AB62: =AA62/4 -> 0.25 | AC62: =AB62*(1/3) -> 0.08333333333 | AG62: 2 | AH62: 2.22 | AI62: 0 | AJ62: =SUM(AE62,AG62,AI62) -> 2 | AK62: =AJ62/4 -> 0.5 | AL62: =AK62*(1/3) -> 0.1666666667
A63: Saudia Arabia | B63: NP | C63: =(T63+AC63+AL63)*10 -> 2.555555556 | D63: Intensive interpretation | E63: 2 | I63: 2 | J63: 0.18 | K63: 1 | L63: 67.5 | M63: 1 | N63: 8 | O63: 0 | R63: =SUM(E63+G63+I63+K63+M63+O63) -> 6 | S63: =R63/10 -> 0.6 | T63: =S63*(1/3) -> 0.2 | V63: 0 | W63: 22.41 | X63: 0 | Y63: 2.251 | Z63: 1 | AA63: =SUM(V63+X63+Z63) -> 1 | AB63: =AA63/6 -> 0.1666666667 | AC63: =AB63*(1/3) -> 0.05555555556 | AD63: 10 | AE63: 0 | AF63: 2021, 2020, 2019, 2018, 2017, 2016, 2015 | AG63: 0 | AH63: 2.22 | AI63: 0 | AJ63: =SUM(AE63,AG63,AI63) -> 0 | AK63: =AJ63/6 -> 0 | AL63: =AK63*(1/3) -> 0
A64: Bangladesh | B64: AAP, CP | C64: =(T64+AC64+AL64)*10 -> 4.166666667 | D64: Intensive interpretation | E64: 2 | F64: 70 | G64: 1 | H64: One secessionist movement | I64: 1 | J64: 0.02 | K64: 2 | L64: 84.5 | M64: 0 | N64: 40 | O64: 0 | R64: =SUM(E64+G64+I64+K64+M64+O64) -> 6 | S64: =R64/12 -> 0.5 | T64: =S64*(1/3) -> 0.1666666667 | U64: Rome | V64: 1 | Y64: 1.3 | Z64: 0 | AA64: =SUM(V64+X64+Z64) -> 1 | AB64: =AA64/4 -> 0.25 | AC64: =AB64*(1/3) -> 0.08333333333 | AG64: 2 | AH64: 5.56 | AI64: 0 | AJ64: =SUM(AE64,AG64,AI64) -> 2 | AK64: =AJ64/4 -> 0.5 | AL64: =AK64*(1/3) -> 0.1666666667
A65: Iraq | B65: AAP, CP | C65: =(T65+AC65+AL65)*10 -> 3.333333333 | D65: Intensive interpretation | E65: 1 | F65: 71 | G65: 1 | H65: Multiple secessionist movements | I65: 0 | J65: 0.36 | K65: 1 | L65: 93.8 | M65: 0 | N65: 29 | O65: 0 | R65: =SUM(E65+G65+I65+K65+M65+O65) -> 3 | S65: =R65/12 -> 0.25 | T65: =S65*(1/3) -> 0.08333333333 | V65: 0 | Y65: 1.42 | Z65: 0 | AA65: =SUM(V65+X65+Z65) -> 0 | AB65: =AA65/4 -> 0 | AC65: =AB65*(1/3) -> 0 | AG65: 2 | AH65: 6.11 | AI65: 1 | AJ65: =SUM(AE65,AG65,AI65) -> 3 | AK65: =AJ65/4 -> 0.75 | AL65: =AK65*(1/3) -> 0.25
A66: Egypt | B66: CP | C66: =(T66+AC66+AL66)*10 -> 3.055555556 | D66: Intensive interpretation | E66: 2 | F66: 96 | G66: 2 | I66: 2 | J66: 0.18 | K66: 1 | L66: 83.6 | M66: 0 | N66: 18 | O66: 0 | R66: =SUM(E66+G66+I66+K66+M66+O66) -> 7 | S66: =R66/12 -> 0.5833333333 | T66: =S66*(1/3) -> 0.1944444444 | U66: ICJ | V66: 1 | W66: 59.37 | X66: 1 | Y66: 1.212 | Z66: 0 | AA66: =SUM(V66+X66+Z66) -> 2 | AB66: =AA66/6 -> 0.3333333333 | AC66: =AB66*(1/3) -> 0.1111111111 | AF66: 2017, 2016, 2015 | AG66: 0 | AH66: 3.33 | AI66: 0 | AJ66: =SUM(AE66,AG66,AI66) -> 0 | AK66: =AJ66/4 -> 0 | AL66: =AK66*(1/3) -> 0
A67: Zimbabwe | B67: AAP, CP | C67: =(T67+AC67+AL67)*10 -> 4.166666667 | D67: Intensive interpretation | E67: 2 | F67: 72 | G67: 1 | I67: 2 | J67: 0.32 | K67: 1 | L67: 97.8 | M67: 0 | N67: 28 | O67: 0 | R67: =SUM(E67+G67+I67+K67+M67+O67) -> 6 | S67: =R67/12 -> 0.5 | T67: =S67*(1/3) -> 0.1666666667 | V67: 0 | Y67: 2.813 | Z67: 1 | AA67: =SUM(V67+X67+Z67) -> 1 | AB67: =AA67/4 -> 0.25 | AC67: =AB67*(1/3) -> 0.08333333333 | AG67: 2 | AH67: 3.89 | AI67: 0 | AJ67: =SUM(AE67,AG67,AI67) -> 2 | AK67: =AJ67/4 -> 0.5 | AL67: =AK67*(1/3) -> 0.1666666667
A68: Lebanon | B68: AAP, CP | C68: =(T68+AC68+AL68)*10 -> 5.555555556 | D68: Intensive interpretation | E68: 2 | F68: 86 | G68: 2 | I68: 2 | J68: 0.13 | K68: 2 | L68: 91.3 | M68: 0 | N68: 43 | O68: 0 | R68: =SUM(E68+G68+I68+K68+M68+O68) -> 8 | S68: =R68/12 -> 0.6666666667 | T68: =S68*(1/3) -> 0.2222222222 | V68: 0 | Y68: 3.187 | Z68: 1 | AA68: =SUM(V68+X68+Z68) -> 1 | AB68: =AA68/4 -> 0.25 | AC68: =AB68*(1/3) -> 0.08333333333 | AG68: 2 | AH68: 6.67 | AI68: 1 | AJ68: =SUM(AE68,AG68,AI68) -> 3 | AK68: =AJ68/4 -> 0.75 | AL68: =AK68*(1/3) -> 0.25
A69: Tunisia | B69: AAP, CP | C69: =(T69+AC69+AL69)*10 -> 6.666666667 | D69: Intensive interpretation | E69: 2 | F69: 85 | G69: 2 | I69: 2 | J69: 0.04 | K69: 2 | L69: 68.2 | M69: 1 | N69: 56 | O69: 0 | R69: =SUM(E69+G69+I69+K69+M69+O69) -> 9 | S69: =R69/12 -> 0.75 | T69: =S69*(1/3) -> 0.25 | U69: Rome | V69: 1 | Y69: 2.256 | Z69: 1 | AA69: =SUM(V69+X69+Z69) -> 2 | AB69: =AA69/4 -> 0.5 | AC69: =AB69*(1/3) -> 0.1666666667 | AG69: 2 | AH69: 7.22 | AI69: 1 | AJ69: =SUM(AE69,AG69,AI69) -> 3 | AK69: =AJ69/4 -> 0.75 | AL69: =AK69*(1/3) -> 0.25
A70: Algeria | B70: NP, CP | C70: =(T70+AC70+AL70)*10 -> 3.888888889 | D70: Intensive interpretation | E70: 2 | I70: 2 | J70: 0.32 | K70: 1 | L70: 72.2 | M70: 1 | N70: 32 | O70: 0 | R70: =SUM(E70+G70+I70+K70+M70+O70) -> 6 | S70: =R70/12 -> 0.5 | T70: =S70*(1/3) -> 0.1666666667 | V70: 0 | W70: 42.26 | X70: 0 | Y70: 2.387 | Z70: 1 | AA70: =SUM(V70+X70+Z70) -> 1 | AB70: =AA70/6 -> 0.1666666667 | AC70: =AB70*(1/3) -> 0.05555555556 | AG70: 2 | AH70: 4.44 | AI70: 0 | AJ70: =SUM(AE70,AG70,AI70) -> 2 | AK70: =AJ70/4 -> 0.5 | AL70: =AK70*(1/3) -> 0.1666666667
A71: Albania | B71: AAP | C71: =(T71+AC71+AL71)*10 -> 4.166666667 | D71: Intensive interpretation | E71: 2 | F71: 43 | G71: 0 | I71: 2 | J71: 0.21 | K71: 1 | L71: 56.7 | M71: 1 | N71: 67 | O71: 0 | R71: =SUM(E71+G71+I71+K71+M71+O71) -> 6 | S71: =R71/12 -> 0.5 | T71: =S71*(1/3) -> 0.1666666667 | U71: Rome | V71: 1 | Y71: 1.809 | Z71: 0 | AA71: =SUM(V71+X71+Z71) -> 1 | AB71: =AA71/4 -> 0.25 | AC71: =AB71*(1/3) -> 0.08333333333 | AD71: 43 | AE71: 1 | AG71: 2 | AH71: 4.44 | AI71: 0 | AJ71: =SUM(AE71,AG71,AI71) -> 3 | AK71: =AJ71/6 -> 0.5 | AL71: =AK71*(1/3) -> 0.1666666667
A72: Uganda | B72: NP, AAP, CP | C72: =(T72+AC72+AL72)*10 -> 3.5 | D72: Intensive interpretation | E72: 2 | H72: One proto-state, two secessionist movements | I72: 0 | J72: 0.36 | K72: 1 | L72: 92.1 | M72: 0 | N72: 35 | O72: 0 | R72: =SUM(E72+G72+I72+K72+M72+O72) -> 3 | S72: =R72/10 -> 0.3 | T72: =S72*(1/3) -> 0.1 | U72: ICJ, Rome | V72: 2 | Y72: 2.818 | Z72: 1 | AA72: =SUM(V72+X72+Z72) -> 3 | AB72: =AA72/4 -> 0.75 | AC72: =AB72*(1/3) -> 0.25 | AF72: 2012, 2000 | AG72: 0 | AH72: 3.89 | AI72: 0 | AJ72: =SUM(AE72,AG72,AI72) -> 0 | AK72: =AJ72/4 -> 0 | AL72: =AK72*(1/3) -> 0
A73: Ethiopia | B73: AAP, CP | C73: =(T73+AC73+AL73)*10 -> 3.888888889 | D73: Intensive interpretation | E73: 2 | F73: 42 | G73: 0 | H73: Multiple proto-states, multiple secessionist movements | I73: 0 | J73: 0.51 | K73: 0 | L73: 99.3 | M73: 0 | N73: 21 | O73: 0 | R73: =SUM(E73+G73+I73+K73+M73+O73) -> 2 | S73: =R73/12 -> 0.1666666667 | T73: =S73*(1/3) -> 0.05555555556 | V73: 0 | Y73: 2.529 | Z73: 1 | AA73: =SUM(V73+X73+Z73) -> 1 | AB73: =AA73/4 -> 0.25 | AC73: =AB73*(1/3) -> 0.08333333333 | AG73: 2 | AH73: 6.11 | AI73: 1 | AJ73: =SUM(AE73,AG73,AI73) -> 3 | AK73: =AJ73/4 -> 0.75 | AL73: =AK73*(1/3) -> 0.25
A74: Rwanda | B74: NP, AAP, CP | C74: =(T74+AC74+AL74)*10 -> 2.833333333 | D74: Intensive interpretation | E74: 2 | I74: 2 | J74: 0 | K74: 2 | L74: 83.7 | M74: 0 | N74: 23 | O74: 0 | R74: =SUM(E74+G74+I74+K74+M74+O74) -> 6 | S74: =R74/10 -> 0.6 | T74: =S74*(1/3) -> 0.2 | V74: 0 | Y74: 2.203 | Z74: 1 | AA74: =SUM(V74+X74+Z74) -> 1 | AB74: =AA74/4 -> 0.25 | AC74: =AB74*(1/3) -> 0.08333333333 | AF74: 2013, 2012, 2001, 2000 | AG74: 0 | AH74: 2.78 | AI74: 0 | AJ74: =SUM(AE74,AG74,AI74) -> 0 | AK74: =AJ74/4 -> 0 | AL74: =AK74*(1/3) -> 0
A75: Burkina Faso | B75: NP,AAP, CP | C75: =(T75+AC75+AL75)*10 -> 4.666666667 | D75: Intensive interpretation | E75: 2 | I75: 2 | J75: 0.65 | K75: 0 | L75: 90.5 | M75: 0 | N75: 30 | O75: 0 | R75: =SUM(E75+G75+I75+K75+M75+O75) -> 4 | S75: =R75/10 -> 0.4 | T75: =S75*(1/3) -> 0.1333333333 | U75: Rome | V75: 1 | Y75: 3.315 | Z75: 1 | AA75: =SUM(V75+X75+Z75) -> 2 | AB75: =AA75/4 -> 0.5 | AC75: =AB75*(1/3) -> 0.1666666667 | AG75: 2 | AH75: 5 | AI75: 0 | AJ75: =SUM(AE75,AG75,AI75) -> 2 | AK75: =AJ75/4 -> 0.5 | AL75: =AK75*(1/3) -> 0.1666666667
A76: Nigeria | B76: AAP, CP | C76: =(T76+AC76+AL76)*10 -> 5 | D76: Intensive interpretation | E76: 2 | F76: 83 | G76: 1 | H76: Multiple proto-states, two secessionist movements | I76: 0 | J76: 0.83 | K76: 0 | L76: 97.2 | M76: 0 | N76: 43 | O76: 0 | R76: =SUM(E76+G76+I76+K76+M76+O76) -> 3 | S76: =R76/12 -> 0.25 | T76: =S76*(1/3) -> 0.08333333333 | U76: ICJ, Rome | V76: 2 | Y76: 2.195 | Z76: 1 | AA76: =SUM(V76+X76+Z76) -> 3 | AB76: =AA76/4 -> 0.75 | AC76: =AB76*(1/3) -> 0.25 | AG76: 2 | AH76: 3.89 | AI76: 0 | AJ76: =SUM(AE76,AG76,AI76) -> 2 | AK76: =AJ76/4 -> 0.5 | AL76: =AK76*(1/3) -> 0.1666666667
A77: Morocco | B77: CP | C77: =(T77+AC77+AL77)*10 -> 2.777777778 | D77: Intensive interpretation | E77: 2 | F77: 69 | G77: 0 | H77: One proto-state, one secessionist movement | I77: 0 | J77: 0.44 | K77: 1 | L77: 70.1 | M77: 1 | N77: 37 | O77: 0 | R77: =SUM(E77+G77+I77+K77+M77+O77) -> 4 | S77: =R77/12 -> 0.3333333333 | T77: =S77*(1/3) -> 0.1111111111 | V77: 0 | W77: 67.44 | X77: 2 | Y77: 2.115 | Z77: 1 | AA77: =SUM(V77+X77+Z77) -> 3 | AB77: =AA77/6 -> 0.5 | AC77: =AB77*(1/3) -> 0.1666666667 | AF77: 2018, 2017, 2016, 2015 | AG77: 0 | AH77: 5.56 | AI77: 0 | AJ77: =SUM(AE77,AG77,AI77) -> 0 | AK77: =AJ77/4 -> 0 | AL77: =AK77*(1/3) -> 0
A78: Libya | B78: AAP, CP | C78: =(T78+AC78+AL78)*10 -> 5.277777778 | D78: Intensive interpretation | E78: 2 | F78: 97 | G78: 2 | I78: 2 | J78: 0.35 | K78: 1 | L78: 94.3 | M78: 0 | N78: 10 | O78: 0 | R78: =SUM(E78+G78+I78+K78+M78+O78) -> 7 | S78: =R78/12 -> 0.5833333333 | T78: =S78*(1/3) -> 0.1944444444 | V78: 0 | Y78: 3.749 | Z78: 2 | AA78: =SUM(V78+X78+Z78) -> 2 | AB78: =AA78/4 -> 0.5 | AC78: =AB78*(1/3) -> 0.1666666667 | AG78: 2 | AH78: 3.33 | AI78: 0 | AJ78: =SUM(AE78,AG78,AI78) -> 2 | AK78: =AJ78/4 -> 0.5 | AL78: =AK78*(1/3) -> 0.1666666667
A79: Peru | B79: AAP, CP | C79: =(T79+AC79+AL79)*10 -> 5 | D79: Intensive interpretation | E79: 2 | F79: 77 | G79: 0 | I79: 2 | J79: 0.58 | K79: 0 | L79: 69.8 | M79: 1 | N79: 70 | O79: 1 | R79: =SUM(E79+G79+I79+K79+M79+O79) -> 6 | S79: =R79/12 -> 0.5 | T79: =S79*(1/3) -> 0.1666666667 | U79: ICJ, Rome | V79: 2 | Y79: 1.719 | Z79: 0 | AA79: =SUM(V79+X79+Z79) -> 2 | AB79: =AA79/4 -> 0.5 | AC79: =AB79*(1/3) -> 0.1666666667 | AG79: 2 | AH79: 5.56 | AI79: 0 | AJ79: =SUM(AE79,AG79,AI79) -> 2 | AK79: =AJ79/4 -> 0.5 | AL79: =AK79*(1/3) -> 0.1666666667
A80: Armenia | B80: AAP, CP | C80: =(T80+AC80+AL80)*10 -> 3.888888889 | D80: Intensive interpretation | E80: 2 | F80: 84 | G80: 1 | I80: 2 | J80: 0.12 | K80: 2 | L80: 67 | M80: 1 | N80: 54 | O80: 0 | R80: =SUM(E80+G80+I80+K80+M80+O80) -> 8 | S80: =R80/12 -> 0.6666666667 | T80: =S80*(1/3) -> 0.2222222222 | V80: 0 | Y80: 2.868 | Z80: 1 | AA80: =SUM(V80+X80+Z80) -> 1 | AB80: =AA80/4 -> 0.25 | AC80: =AB80*(1/3) -> 0.08333333333 | AF80: 2021, 2020, 2017, 2016, 2015, 2014, 2012, 2008, 2005 | AG80: 0 | AH80: 6.11 | AI80: 1 | AJ80: =SUM(AE80,AG80,AI80) -> 1 | AK80: =AJ80/4 -> 0.25 | AL80: =AK80*(1/3) -> 0.08333333333
A81: Hungary | C81: =(T81+AC81+AL81)*10 -> 5 | D81: Intensive interpretation | E81: 2 | F81: 78 | G81: 1 | I81: 2 | J81: 0.15 | K81: 2 | L81: 50.8 | M81: 1 | N81: 66 | O81: 0 | R81: =SUM(E81+G81+I81+K81+M81+O81) -> 8 | S81: =R81/12 -> 0.6666666667 | T81: =S81*(1/3) -> 0.2222222222 | U81: ICJ, Rome | V81: 2 | W81: 38.51 | X81: 0 | Y81: 1.648 | Z81: 0 | AA81: =SUM(V81+X81+Z81) -> 2 | AB81: =AA81/6 -> 0.3333333333 | AC81: =AB81*(1/3) -> 0.1111111111 | AD81: 43 | AE81: 1 | AG81: 2 | AH81: 5 | AI81: 0 | AJ81: =SUM(AE81,AG81,AI81) -> 3 | AK81: =AJ81/6 -> 0.5 | AL81: =AK81*(1/3) -> 0.1666666667
A82: Chile | C82: =(T82+AC82+AL82)*10 -> 6.944444444 | D82: Intensive interpretation | E82: 2 | F82: 71 | G82: 1 | I82: 2 | J82: 0.19 | K82: 1 | L82: 43.2 | M82: 1 | N82: 94 | O82: 2 | R82: =SUM(E82+G82+I82+K82+M82+O82) -> 9 | S82: =R82/12 -> 0.75 | T82: =S82*(1/3) -> 0.25 | U82: Rome | V82: 1 | W82: 69.54 | X82: 2 | Y82: 4.442 | Z82: 2 | AA82: =SUM(V82+X82+Z82) -> 5 | AB82: =AA82/6 -> 0.8333333333 | AC82: =AB82*(1/3) -> 0.2777777778 | AD82: 53 | AE82: 1 | AG82: 2 | AH82: 5.56 | AI82: 0 | AJ82: =SUM(AE82,AG82,AI82) -> 3 | AK82: =AJ82/6 -> 0.5 | AL82: =AK82*(1/3) -> 0.1666666667
A83: Kazakhstan | B83: CP | C83: =(T83+AC83+AL83)*10 -> 3.611111111 | D83: Intensive interpretation | E83: 2 | F83: 68 | G83: 0 | I83: 2 | J83: 0.6 | K83: 0 | L83: 59.5 | M83: 1 | N83: 23 | O83: 0 | R83: =SUM(E83+G83+I83+K83+M83+O83) -> 5 | S83: =R83/12 -> 0.4166666667 | T83: =S83*(1/3) -> 0.1388888889 | V83: 0 | W83: 24.61 | X83: 0 | Y83: 2.029 | Z83: 1 | AA83: =SUM(V83+X83+Z83) -> 1 | AB83: =AA83/6 -> 0.1666666667 | AC83: =AB83*(1/3) -> 0.05555555556 | AG83: 2 | AH83: 5 | AI83: 0 | AJ83: =SUM(AE83,AG83,AI83) -> 2 | AK83: =AJ83/4 -> 0.5 | AL83: =AK83*(1/3) -> 0.1666666667
A84: Georgia | B84: AAP, CP | C84: =(T84+AC84+AL84)*10 -> 5.277777778 | D84: Intensive interpretation | E84: 2 | F84: 66 | G84: 0 | H84: Two secessionist movements | I84: 0 | J84: 0.48 | K84: 1 | L84: 71.8 | M84: 1 | N84: 58 | O84: 0 | R84: =SUM(E84+G84+I84+K84+M84+O84) -> 4 | S84: =R84/12 -> 0.3333333333 | T84: =S84*(1/3) -> 0.1111111111 | U84: ICJ, Rome | V84: 2 | Y84: 2.973 | Z84: 1 | AA84: =SUM(V84+X84+Z84) -> 3 | AB84: =AA84/4 -> 0.75 | AC84: =AB84*(1/3) -> 0.25 | AG84: 2 | AH84: 5.56 | AI84: 0 | AJ84: =SUM(AE84,AG84,AI84) -> 2 | AK84: =AJ84/4 -> 0.5 | AL84: =AK84*(1/3) -> 0.1666666667
A85: Bolivia | B85: AAP, CP | C85: =(T85+AC85+AL85)*10 -> 4.722222222 | D85: Intensive interpretation | E85: 2 | F85: 66 | G85: 0 | I85: 2 | J85: 0.67 | K85: 0 | L85: 73.4 | M85: 1 | N85: 66 | O85: 0 | R85: =SUM(E85+G85+I85+K85+M85+O85) -> 5 | S85: =R85/12 -> 0.4166666667 | T85: =S85*(1/3) -> 0.1388888889 | U85: Rome | V85: 1 | Y85: 1.683 | Z85: 0 | AA85: =SUM(V85+X85+Z85) -> 1 | AB85: =AA85/4 -> 0.25 | AC85: =AB85*(1/3) -> 0.08333333333 | AG85: 2 | AH85: 6.11 | AI85: 1 | AJ85: =SUM(AE85,AG85,AI85) -> 3 | AK85: =AJ85/4 -> 0.75 | AL85: =AK85*(1/3) -> 0.25
A86: Myanmar | B86: AAP, CP | C86: =(T86+AC86+AL86)*10 -> 2.5 | D86: Intensive interpretation | E86: 2 | F86: 56 | G86: 0 | H86: Two proto-states, multiple secessionist movements | I86: 0 | J86: 0.49 | K86: 1 | L86: 100 | M86: 0 | N86: 9 | O86: 0 | R86: =SUM(E86+G86+I86+K86+M86+O86) -> 3 | S86: =R86/12 -> 0.25 | T86: =S86*(1/3) -> 0.08333333333 | V86: 0 | Y86: 0.814 | Z86: 0 | AA86: =SUM(V86+X86+Z86) -> 0 | AB86: =AA86/4 -> 0 | AC86: =AB86*(1/3) -> 0 | AG86: 2 | AH86: 1.67 | AI86: 0 | AJ86: =SUM(AE86,AG86,AI86) -> 2 | AK86: =AJ86/4 -> 0.5 | AL86: =AK86*(1/3) -> 0.1666666667
A87: Nicaragua | B87: AAP, CP | C87: =(T87+AC87+AL87)*10 -> 4.444444444 | D87: Intensive interpretation | E87: 2 | F87: 48 | G87: 0 | I87: 2 | J87: 0.09 | K87: 2 | L87: 77.7 | M87: 1 | N87: 19 | O87: 0 | R87: =SUM(E87+G87+I87+K87+M87+O87) -> 7 | S87: =R87/12 -> 0.5833333333 | T87: =S87*(1/3) -> 0.1944444444 | U87: ICJ | V87: 1 | Y87: 0.45 | Z87: 0 | AA87: =SUM(V87+X87+Z87) -> 1 | AB87: =AA87/4 -> 0.25 | AC87: =AB87*(1/3) -> 0.08333333333 | AG87: 2 | AH87: 3.33 | AI87: 0 | AJ87: =SUM(AE87,AG87,AI87) -> 2 | AK87: =AJ87/4 -> 0.5 | AL87: =AK87*(1/3) -> 0.1666666667
A88: Indonesia | C88: =(T88+AC88+AL88)*10 -> 4.166666667 | D88: Intensive interpretation | E88: 2 | F88: 48 | G88: 0 | H88: Multiple secessionist movements | I88: 0 | J88: 0.65 | K88: 0 | L88: 66.6 | M88: 1 | N88: 58 | O88: 0 | R88: =SUM(E88+G88+I88+K88+M88+O88) -> 3 | S88: =R88/12 -> 0.25 | T88: =S88*(1/3) -> 0.08333333333 | V88: 0 | W88: 54.59 | X88: 1 | Y88: 3.586 | Z88: 2 | AA88: =SUM(V88+X88+Z88) -> 3 | AB88: =AA88/6 -> 0.5 | AC88: =AB88*(1/3) -> 0.1666666667 | AD88: 26 | AE88: 0 | AG88: 2 | AH88: 7.22 | AI88: 1 | AJ88: =SUM(AE88,AG88,AI88) -> 3 | AK88: =AJ88/6 -> 0.5 | AL88: =AK88*(1/3) -> 0.1666666667
A89: Guatemala | B89: AAP, CP | C89: =(T89+AC89+AL89)*10 -> 3.888888889 | D89: Intensive interpretation | E89: 2 | F89: 42 | G89: 0 | I89: 2 | J89: 0.51 | K89: 0 | L89: 77.5 | M89: 1 | N89: 49 | O89: 0 | R89: =SUM(E89+G89+I89+K89+M89+O89) -> 5 | S89: =R89/12 -> 0.4166666667 | T89: =S89*(1/3) -> 0.1388888889 | U89: Rome | V89: 1 | Y89: 1.511 | Z89: 0 | AA89: =SUM(V89+X89+Z89) -> 1 | AB89: =AA89/4 -> 0.25 | AC89: =AB89*(1/3) -> 0.08333333333 | AG89: 2 | AH89: 3.89 | AI89: 0 | AJ89: =SUM(AE89,AG89,AI89) -> 2 | AK89: =AJ89/4 -> 0.5 | AL89: =AK89*(1/3) -> 0.1666666667
A90: Example of a supranational demos
A91: European Union | B91: NP, AAP, CP | C91: =(T91+AC91+AL91)*10 -> 4.833333333 | D91: Intensive interpretation | E91: 0 | F91: The European Union’s citizens does, comparatively to other demoi, to a low extent identify as European. Only 56 percent identifies as European and 14 percent answer that they are not identifying as European (Becuwe – Baneth 2021: 74). Considering the European identity’s competitive position against the national ones, it would be reasonable to put the limits a bit lower. Still, the identification is not nearly as strong as the national ones given points, and a zero should be given. | G91: 0 | H91: The choice made by the United Kingdom to leave the European Union as well as the articulated euroscepticism existing in multitude of the Union’s membership countries (De Vries 2018: 77-102) is sufficient to be compared to having at least to secessionist movements. Hence, the EU scores zero point on the indicator. | I91: 0 | J91: See discussion in thesis 5.1.8. | L91: There are 23 EU-countries in the dataset. Out of those do 14 score two and nine score one. Thus, approximately 61% scores two, which is not sufficient for two points (see 5.2.4 in the thesis). One points is given. | M91: 1 | N91: There are 23 EU-countries in the dataset. Out of those do 14 score two; eight score one; and one score zero. Thus, approximately 61% scores two, which is not sufficient for two points (see 5.2.4 in the thesis). Approximately 96 percent scores one or higher. One points is given. | O91: 1 | R91: =SUM(E91+G91+I91+K91+M91+O91) -> 2 | S91: =R91/10 -> 0.2 | T91: =S91*(1/3) -> 0.06666666667 | U91: There are 23 EU-countries in the dataset. Out of those do 19 score two and four score one.Thus, approximately 83 percent scores two, which is not sufficient for two points (see 5.2.4 in the thesis). One points is given. | V91: 1 | W91: 59.96 | X91: 1 | Y91: I do not consider the method to aggregate the states scores to EU level to be a good indicator for the Union as a whole for this indicator, since the methods used for producing the data are to a great extent context specific. Another comparable comparable indicator is needed. | AA91: =SUM(V91+X91+Z91) -> 2 | AB91: =AA91/4 -> 0.5 | AC91: =AB91*(1/3) -> 0.1666666667 | AD91: There are 23 EU-countries in the dataset. Out of those do five score two and twelve score one. Thus, approximately 22 percent scores two, which is not sufficient for two points (see 5.2.4 in the thesis). Approximately 74 percent score 1 or higher, which is sufficient for one point. | AE91: 1 | AG91: 2 | AH91: I do not consider the method to aggregate the states scores to EU level to be a good indicator for the Union as a whole for this indicator, since the methods used for producing the data are to a great extent context specific. Another comparable comparable indicator is needed. | AJ91: =SUM(AE91,AG91,AI91) -> 3 | AK91: =AJ91/4 -> 0.75 | AL91: =AK91*(1/3) -> 0.25
A92: Example of a secessionist demos
A93: Catalonia | B93: NP lacking one. AAP and CP are not applicable (see 5.2.5; 5.2.5 in the thesis). | C93: =S93*10 -> 7.5 | D93: For this indicator I lack a good substitute, but it is somewhat measured bu the indicator for 5.1.4. I encourage others to develop a standardised way to measure this. | F93: Approximately 40 percent consider themselves to be either only Catalan, or more Catalan than Spanish. However, an equally big share consider themselves to be equally Spanish and Catalan (Statista 2022). Despite a substantial proportion identifying as Catalan (> 80%), about ten percept identifies more as Spanish. This should, interpreted as the other cases, be translated to scoring of 1. | G93: 1 | H93: Considering that the Catalan secessionist movement is an opposition to the Spanish national identity, and that the opposition is quite strong (as reasoned in thesis 5.1.7) point(s) should be given. Opposition to the national identity is something supporting the secessionist case. However, as reasoned in the dataset 5.1.2 for the Catalonian case, the identification as Catalan is not conclusive. Therefore, it appears reasonable to give Catalonia one point on this indicator; the movement poses a strong opposition to the national identity, but is not entirely convincing in constructing its own identity. | I93: 1 | J93: The question for the secessionist case is rather that of cultural heterogeneity between the main political unit and the secessionist one. The indicator is supposed to measure the level of how the distinct culture is and what historical and future ties it has. As explained by McRoberts (2022: 3-20), Catalonia has its own culture, cleary distinct from the rest of Spain with its own cultural expressions. This should be sufficient to score two on the indicator (with the reasoning about comparability in mind found 5.1.7 in the thesis. | K93: 2 | O93: 1 | P93: See reasoning in thesis 5.1.7. | Q93: 2 | R93: =SUM(E93+G93+I93+K93+Q93) -> 6 | S93: =R93/8 -> 0.75

Sheet Diagram Creation
A1: Index Scores (Falling)
A2: Demos | B2: Index Score | C2: NP Harmonisation (quota multiplied with 1/3) | D2: NP-Score | E2: AAP Harmonisation (quota multiplied with 1/3) | F2: AAP-Score | G2: CP Harmonisation (quota multiplied with 1/3) | H2: CP-Score
A3: Norway | B3: =SUM(D3+F3+H3) -> 10 | C3: 0.3333333333 | D3: =C3*10 -> 3.333333333 | E3: 0.3333333333 | F3: =E3*10 -> 3.333333333 | G3: 0.3333333333 | H3: =G3*10 -> 3.333333333
A4: Finland | B4: =SUM(D4+F4+H4) -> 10 | C4: 0.3333333333 | D4: =C4*10 -> 3.333333333 | E4: 0.3333333333 | F4: =E4*10 -> 3.333333333 | G4: 0.3333333333 | H4: =G4*10 -> 3.333333333
A5: Sweden | B5: =SUM(D5+F5+H5) -> 9.722222222 | C5: 0.3055555556 | D5: =C5*10 -> 3.055555556 | E5: 0.3333333333 | F5: =E5*10 -> 3.333333333 | G5: 0.3333333333 | H5: =G5*10 -> 3.333333333
A6: Denmark | B6: =SUM(D6+F6+H6) -> 9.444444444 | C6: 0.3333333333 | D6: =C6*10 -> 3.333333333 | E6: 0.3333333333 | F6: =E6*10 -> 3.333333333 | G6: 0.2777777778 | H6: =G6*10 -> 2.777777778
A7: Portugal | B7: =SUM(D7+F7+H7) -> 9.166666667 | C7: 0.25 | D7: =C7*10 -> 2.5 | E7: 0.3888888889 | F7: =E7*10 -> 3.888888889 | G7: 0.2777777778 | H7: =G7*10 -> 2.777777778
A8: Germany | B8: =SUM(D8+F8+H8) -> 8.888888889 | C8: 0.2777777778 | D8: =C8*10 -> 2.777777778 | E8: 0.3333333333 | F8: =E8*10 -> 3.333333333 | G8: 0.2777777778 | H8: =G8*10 -> 2.777777778
A9: Iceland | B9: =SUM(D9+F9+H9) -> 8.611111111 | C9: 0.3333333333 | D9: =C9*10 -> 3.333333333 | E9: 0.25 | F9: =E9*10 -> 2.5 | G9: 0.2777777778 | H9: =G9*10 -> 2.777777778
A10: New Zealand | B10: =SUM(D10+F10+H10) -> 8.611111111 | C10: 0.25 | D10: =C10*10 -> 2.5 | E10: 0.2777777778 | F10: =E10*10 -> 2.777777778 | G10: 0.3333333333 | H10: =G10*10 -> 3.333333333
A11: Estonia | B11: =SUM(D11+F11+H11) -> 8.611111111 | C11: 0.3055555556 | D11: =C11*10 -> 3.055555556 | E11: 0.3333333333 | F11: =E11*10 -> 3.333333333 | G11: 0.2222222222 | H11: =G11*10 -> 2.222222222
A12: Netherlands | B12: =SUM(D12+F12+H12) -> 8.333333333 | C12: 0.2222222222 | D12: =C12*10 -> 2.222222222 | E12: 0.3333333333 | F12: =E12*10 -> 3.333333333 | G12: 0.2777777778 | H12: =G12*10 -> 2.777777778
A13: Uruguay | B13: =SUM(D13+F13+H13) -> 8.333333333 | C13: 0.3333333333 | D13: =C13*10 -> 3.333333333 | E13: 0.25 | F13: =E13*10 -> 2.5 | G13: 0.25 | H13: =G13*10 -> 2.5
A14: Austria | B14: =SUM(D14+F14+H14) -> 8.055555556 | C14: 0.3055555556 | D14: =C14*10 -> 3.055555556 | E14: 0.2222222222 | F14: =E14*10 -> 2.222222222 | G14: 0.2777777778 | H14: =G14*10 -> 2.777777778
A15: United Kingdom | B15: =SUM(D15+F15+H15) -> 8.055555556 | C15: 0.1944444444 | D15: =C15*10 -> 1.944444444 | E15: 0.3333333333 | F15: =E15*10 -> 3.333333333 | G15: 0.2777777778 | H15: =G15*10 -> 2.777777778
A16: Switzerland | B16: =SUM(D16+F16+H16) -> 7.777777778 | C16: 0.2777777778 | D16: =C16*10 -> 2.777777778 | E16: 0.2777777778 | F16: =E16*10 -> 2.777777778 | G16: 0.2222222222 | H16: =G16*10 -> 2.222222222
A17: Australia | B17: =SUM(D17+F17+H17) -> 7.5 | C17: 0.25 | D17: =C17*10 -> 2.5 | E17: 0.2222222222 | F17: =E17*10 -> 2.222222222 | G17: 0.2777777778 | H17: =G17*10 -> 2.777777778
A18: Japan | B18: =SUM(D18+F18+H18) -> 7.5 | C18: 0.3055555556 | D18: =C18*10 -> 3.055555556 | E18: 0.2222222222 | F18: =E18*10 -> 2.222222222 | G18: 0.2222222222 | H18: =G18*10 -> 2.222222222
A19: Catalonia | B19: =SUM(D19+F19+H19) -> 7.5 | D19: 7.5
A20: Spain | B20: =SUM(D20+F20+H20) -> 7.222222222 | C20: 0.1666666667 | D20: =C20*10 -> 1.666666667 | E20: 0.2777777778 | F20: =E20*10 -> 2.777777778 | G20: 0.2777777778 | H20: =G20*10 -> 2.777777778
A21: Slovenia | B21: =SUM(D21+F21+H21) -> 7.222222222 | C21: 0.3333333333 | D21: =C21*10 -> 3.333333333 | E21: 0.1666666667 | F21: =E21*10 -> 1.666666667 | G21: 0.2222222222 | H21: =G21*10 -> 2.222222222
A22: Czech Republic | B22: =SUM(D22+F22+H22) -> 6.944444444 | C22: 0.3055555556 | D22: =C22*10 -> 3.055555556 | E22: 0.1666666667 | F22: =E22*10 -> 1.666666667 | G22: 0.2222222222 | H22: =G22*10 -> 2.222222222
A23: Lithuania | B23: =SUM(D23+F23+H23) -> 6.944444444 | C23: 0.25 | D23: =C23*10 -> 2.5 | E23: 0.2777777778 | F23: =E23*10 -> 2.777777778 | G23: 0.1666666667 | H23: =G23*10 -> 1.666666667
A24: Chile | B24: =SUM(D24+F24+H24) -> 6.944444444 | C24: 0.25 | D24: =C24*10 -> 2.5 | E24: 0.2777777778 | F24: =E24*10 -> 2.777777778 | G24: 0.1666666667 | H24: =G24*10 -> 1.666666667
A25: Canada | B25: =SUM(D25+F25+H25) -> 6.944444444 | C25: 0.1944444444 | D25: =C25*10 -> 1.944444444 | E25: 0.1666666667 | F25: =E25*10 -> 1.666666667 | G25: 0.3333333333 | H25: =G25*10 -> 3.333333333
A26: Italy | B26: =SUM(D26+F26+H26) -> 6.944444444 | C26: 0.1944444444 | D26: =C26*10 -> 1.944444444 | E26: 0.2777777778 | F26: =E26*10 -> 2.777777778 | G26: 0.2222222222 | H26: =G26*10 -> 2.222222222
A27: Taiwan | B27: =SUM(D27+F27+H27) -> 6.833333333 | C27: 0.2666666667 | D27: =C27*10 -> 2.666666667 | E27: 0.1666666667 | F27: =E27*10 -> 1.666666667 | G27: 0.25 | H27: =G27*10 -> 2.5
A28: Tunisia | B28: =SUM(D28+F28+H28) -> 6.666666667 | C28: 0.25 | D28: =C28*10 -> 2.5 | E28: 0.1666666667 | F28: =E28*10 -> 1.666666667 | G28: 0.25 | H28: =G28*10 -> 2.5
A29: Greece | B29: =SUM(D29+F29+H29) -> 6.666666667 | C29: 0.2222222222 | D29: =C29*10 -> 2.222222222 | E29: 0.2222222222 | F29: =E29*10 -> 2.222222222 | G29: 0.2222222222 | H29: =G29*10 -> 2.222222222
A30: Belgium | B30: =SUM(D30+F30+H30) -> 6.444444444 | C30: 0.2 | D30: =C30*10 -> 2 | E30: 0.2222222222 | F30: =E30*10 -> 2.222222222 | G30: 0.2222222222 | H30: =G30*10 -> 2.222222222
A31: Latvia | B31: =SUM(D31+F31+H31) -> 6.388888889 | C31: 0.1944444444 | D31: =C31*10 -> 1.944444444 | E31: 0.2777777778 | F31: =E31*10 -> 2.777777778 | G31: 0.1666666667 | H31: =G31*10 -> 1.666666667
A32: Slovakia | B32: =SUM(D32+F32+H32) -> 6.388888889 | C32: 0.3055555556 | D32: =C32*10 -> 3.055555556 | E32: 0.2222222222 | F32: =E32*10 -> 2.222222222 | G32: 0.1111111111 | H32: =G32*10 -> 1.111111111
A33: Bulgaria | B33: =SUM(D33+F33+H33) -> 6.388888889 | C33: 0.25 | D33: =C33*10 -> 2.5 | E33: 0.2222222222 | F33: =E33*10 -> 2.222222222 | G33: 0.1666666667 | H33: =G33*10 -> 1.666666667
A34: Colombia | B34: =SUM(D34+F34+H34) -> 6.388888889 | C34: 0.2222222222 | D34: =C34*10 -> 2.222222222 | E34: 0.1666666667 | F34: =E34*10 -> 1.666666667 | G34: 0.25 | H34: =G34*10 -> 2.5
A35: France | B35: =SUM(D35+F35+H35) -> 6.388888889 | C35: 0.1944444444 | D35: =C35*10 -> 1.944444444 | E35: 0.2222222222 | F35: =E35*10 -> 2.222222222 | G35: 0.2222222222 | H35: =G35*10 -> 2.222222222
A36: Israel | B36: =SUM(D36+F36+H36) -> 6.111111111 | C36: 0.1666666667 | D36: =C36*10 -> 1.666666667 | E36: 0.1666666667 | F36: =E36*10 -> 1.666666667 | G36: 0.2777777778 | H36: =G36*10 -> 2.777777778
A37: South Korea | B37: =SUM(D37+F37+H37) -> 6.111111111 | C37: 0.2777777778 | D37: =C37*10 -> 2.777777778 | E37: 0.1111111111 | F37: =E37*10 -> 1.111111111 | G37: 0.2222222222 | H37: =G37*10 -> 2.222222222
A38: Brazil | B38: =SUM(D38+F38+H38) -> 6.111111111 | C38: 0.2222222222 | D38: =C38*10 -> 2.222222222 | E38: 0.1111111111 | F38: =E38*10 -> 1.111111111 | G38: 0.2777777778 | H38: =G38*10 -> 2.777777778
A39: United States (USA) | B39: =SUM(D39+F39+H39) -> 5.833333333 | C39: 0.1388888889 | D39: =C39*10 -> 1.388888889 | E39: 0.1111111111 | F39: =E39*10 -> 1.111111111 | G39: 0.3333333333 | H39: =G39*10 -> 3.333333333
A40: Croatia | B40: =SUM(D40+F40+H40) -> 5.833333333 | C40: 0.1944444444 | D40: =C40*10 -> 1.944444444 | E40: 0.2222222222 | F40: =E40*10 -> 2.222222222 | G40: 0.1666666667 | H40: =G40*10 -> 1.666666667
A41: South Africa | B41: =SUM(D41+F41+H41) -> 5.777777778 | C41: 0.1333333333 | D41: =C41*10 -> 1.333333333 | E41: 0.1666666667 | F41: =E41*10 -> 1.666666667 | G41: 0.2777777778 | H41: =G41*10 -> 2.777777778
A42: Poland | B42: =SUM(D42+F42+H42) -> 5.555555556 | C42: 0.2777777778 | D42: =C42*10 -> 2.777777778 | E42: 0.1111111111 | F42: =E42*10 -> 1.111111111 | G42: 0.1666666667 | H42: =G42*10 -> 1.666666667
A43: Argentina | B43: =SUM(D43+F43+H43) -> 5.555555556 | C43: 0.2222222222 | D43: =C43*10 -> 2.222222222 | E43: 0.1111111111 | F43: =E43*10 -> 1.111111111 | G43: 0.2222222222 | H43: =G43*10 -> 2.222222222
A44: Philipines | B44: =SUM(D44+F44+H44) -> 5.555555556 | C44: 0.08333333333 | D44: =C44*10 -> 0.8333333333 | E44: 0.2222222222 | F44: =E44*10 -> 2.222222222 | G44: 0.25 | H44: =G44*10 -> 2.5
A45: Romania | B45: =SUM(D45+F45+H45) -> 5.555555556 | C45: 0.2222222222 | D45: =C45*10 -> 2.222222222 | E45: 0.1111111111 | F45: =E45*10 -> 1.111111111 | G45: 0.2222222222 | H45: =G45*10 -> 2.222222222
A46: Lebanon | B46: =SUM(D46+F46+H46) -> 5.555555556 | C46: 0.2222222222 | D46: =C46*10 -> 2.222222222 | E46: 0.08333333333 | F46: =E46*10 -> 0.8333333333 | G46: 0.25 | H46: =G46*10 -> 2.5
A47: North Macedonia | B47: =SUM(D47+F47+H47) -> 5.277777778 | C47: 0.1388888889 | D47: =C47*10 -> 1.388888889 | E47: 0.1666666667 | F47: =E47*10 -> 1.666666667 | G47: 0.2222222222 | H47: =G47*10 -> 2.222222222
A48: Mexico | B48: =SUM(D48+F48+H48) -> 5.277777778 | C48: 0.1388888889 | D48: =C48*10 -> 1.388888889 | E48: 0.1666666667 | F48: =E48*10 -> 1.666666667 | G48: 0.2222222222 | H48: =G48*10 -> 2.222222222
A49: Kenya | B49: =SUM(D49+F49+H49) -> 5.277777778 | C49: 0.1111111111 | D49: =C49*10 -> 1.111111111 | E49: 0.1666666667 | F49: =E49*10 -> 1.666666667 | G49: 0.25 | H49: =G49*10 -> 2.5
A50: Libya | B50: =SUM(D50+F50+H50) -> 5.277777778 | C50: 0.1944444444 | D50: =C50*10 -> 1.944444444 | E50: 0.1666666667 | F50: =E50*10 -> 1.666666667 | G50: 0.1666666667 | H50: =G50*10 -> 1.666666667
A51: Georgia | B51: =SUM(D51+F51+H51) -> 5.277777778 | C51: 0.1111111111 | D51: =C51*10 -> 1.111111111 | E51: 0.25 | F51: =E51*10 -> 2.5 | G51: 0.1666666667 | H51: =G51*10 -> 1.666666667
A52: Mongolia | B52: =SUM(D52+F52+H52) -> 5.277777778 | C52: 0.1944444444 | D52: =C52*10 -> 1.944444444 | E52: 0.08333333333 | F52: =E52*10 -> 0.8333333333 | G52: 0.25 | H52: =G52*10 -> 2.5
A53: Ecuador | B53: =SUM(D53+F53+H53) -> 5.277777778 | C53: 0.1944444444 | D53: =C53*10 -> 1.944444444 | E53: 0.08333333333 | F53: =E53*10 -> 0.8333333333 | G53: 0.25 | H53: =G53*10 -> 2.5
A54: Peru | B54: =SUM(D54+F54+H54) -> 5 | C54: 0.1666666667 | D54: =C54*10 -> 1.666666667 | E54: 0.1666666667 | F54: =E54*10 -> 1.666666667 | G54: 0.1666666667 | H54: =G54*10 -> 1.666666667
A55: Nigeria | B55: =SUM(D55+F55+H55) -> 5 | C55: 0.08333333333 | D55: =C55*10 -> 0.8333333333 | E55: 0.25 | F55: =E55*10 -> 2.5 | G55: 0.1666666667 | H55: =G55*10 -> 1.666666667
A56: Hungary | B56: =SUM(D56+F56+H56) -> 5 | C56: 0.2222222222 | D56: =C56*10 -> 2.222222222 | E56: 0.1111111111 | F56: =E56*10 -> 1.111111111 | G56: 0.1666666667 | H56: =G56*10 -> 1.666666667
A57: India | B57: =SUM(D57+F57+H57) -> 4.888888889 | C57: 0.1 | D57: =C57*10 -> 1 | E57: 0.2222222222 | F57: =E57*10 -> 2.222222222 | G57: 0.1666666667 | H57: =G57*10 -> 1.666666667
A58: European Union | B58: =SUM(D58+F58+H58) -> 4.833333333 | C58: 0.06666666667 | D58: =C58*10 -> 0.6666666667 | E58: 0.1666666667 | F58: =E58*10 -> 1.666666667 | G58: 0.25 | H58: =G58*10 -> 2.5
A59: Bolivia | B59: =SUM(D59+F59+H59) -> 4.722222222 | C59: 0.1388888889 | D59: =C59*10 -> 1.388888889 | E59: 0.08333333333 | F59: =E59*10 -> 0.8333333333 | G59: 0.25 | H59: =G59*10 -> 2.5
A60: Burkina Faso | B60: =SUM(D60+F60+H60) -> 4.666666667 | C60: 0.1333333333 | D60: =C60*10 -> 1.333333333 | E60: 0.1666666667 | F60: =E60*10 -> 1.666666667 | G60: 0.1666666667 | H60: =G60*10 -> 1.666666667
A61: Venezuela | B61: =SUM(D61+F61+H61) -> 4.444444444 | C61: 0.1944444444 | D61: =C61*10 -> 1.944444444 | E61: 0.08333333333 | F61: =E61*10 -> 0.8333333333 | G61: 0.1666666667 | H61: =G61*10 -> 1.666666667
A62: Kyrgyzstan | B62: =SUM(D62+F62+H62) -> 4.444444444 | C62: 0.1944444444 | D62: =C62*10 -> 1.944444444 | E62: 0.08333333333 | F62: =E62*10 -> 0.8333333333 | G62: 0.1666666667 | H62: =G62*10 -> 1.666666667
A63: Nicaragua | B63: =SUM(D63+F63+H63) -> 4.444444444 | C63: 0.1944444444 | D63: =C63*10 -> 1.944444444 | E63: 0.08333333333 | F63: =E63*10 -> 0.8333333333 | G63: 0.1666666667 | H63: =G63*10 -> 1.666666667
A64: Thailand | B64: =SUM(D64+F64+H64) -> 4.166666667 | C64: 0.1666666667 | D64: =C64*10 -> 1.666666667 | E64: 0 | F64: =E64*10 -> 0 | G64: 0.25 | H64: =G64*10 -> 2.5
A65: Tajikistan | B65: =SUM(D65+F65+H65) -> 4.166666667 | C65: 0.1666666667 | D65: =C65*10 -> 1.666666667 | E65: 0.08333333333 | F65: =E65*10 -> 0.8333333333 | G65: 0.1666666667 | H65: =G65*10 -> 1.666666667
A66: Bangladesh | B66: =SUM(D66+F66+H66) -> 4.166666667 | C66: 0.1666666667 | D66: =C66*10 -> 1.666666667 | E66: 0.08333333333 | F66: =E66*10 -> 0.8333333333 | G66: 0.1666666667 | H66: =G66*10 -> 1.666666667
A67: Zimbabwe | B67: =SUM(D67+F67+H67) -> 4.166666667 | C67: 0.1666666667 | D67: =C67*10 -> 1.666666667 | E67: 0.08333333333 | F67: =E67*10 -> 0.8333333333 | G67: 0.1666666667 | H67: =G67*10 -> 1.666666667
A68: Albania | B68: =SUM(D68+F68+H68) -> 4.166666667 | C68: 0.1666666667 | D68: =C68*10 -> 1.666666667 | E68: 0.08333333333 | F68: =E68*10 -> 0.8333333333 | G68: 0.1666666667 | H68: =G68*10 -> 1.666666667
A69: Indonesia | B69: =SUM(D69+F69+H69) -> 4.166666667 | C69: 0.08333333333 | D69: =C69*10 -> 0.8333333333 | E69: 0.1666666667 | F69: =E69*10 -> 1.666666667 | G69: 0.1666666667 | H69: =G69*10 -> 1.666666667
A70: Ukraine | B70: =SUM(D70+F70+H70) -> 4.166666667 | C70: 0.1111111111 | D70: =C70*10 -> 1.111111111 | E70: 0.08333333333 | F70: =E70*10 -> 0.8333333333 | G70: 0.2222222222 | H70: =G70*10 -> 2.222222222
A71: Vietnam | B71: =SUM(D71+F71+H71) -> 3.888888889 | C71: 0.1666666667 | D71: =C71*10 -> 1.666666667 | E71: 0.05555555556 | F71: =E71*10 -> 0.5555555556 | G71: 0.1666666667 | H71: =G71*10 -> 1.666666667
A72: Pakistan | B72: =SUM(D72+F72+H72) -> 3.888888889 | C72: 0.05555555556 | D72: =C72*10 -> 0.5555555556 | E72: 0.1666666667 | F72: =E72*10 -> 1.666666667 | G72: 0.1666666667 | H72: =G72*10 -> 1.666666667
A73: Algeria | B73: =SUM(D73+F73+H73) -> 3.888888889 | C73: 0.1666666667 | D73: =C73*10 -> 1.666666667 | E73: 0.05555555556 | F73: =E73*10 -> 0.5555555556 | G73: 0.1666666667 | H73: =G73*10 -> 1.666666667
A74: Ethiopia | B74: =SUM(D74+F74+H74) -> 3.888888889 | C74: 0.05555555556 | D74: =C74*10 -> 0.5555555556 | E74: 0.08333333333 | F74: =E74*10 -> 0.8333333333 | G74: 0.25 | H74: =G74*10 -> 2.5
A75: Armenia | B75: =SUM(D75+F75+H75) -> 3.888888889 | C75: 0.2222222222 | D75: =C75*10 -> 2.222222222 | E75: 0.08333333333 | F75: =E75*10 -> 0.8333333333 | G75: 0.08333333333 | H75: =G75*10 -> 0.8333333333
A76: Guatemala | B76: =SUM(D76+F76+H76) -> 3.888888889 | C76: 0.1388888889 | D76: =C76*10 -> 1.388888889 | E76: 0.08333333333 | F76: =E76*10 -> 0.8333333333 | G76: 0.1666666667 | H76: =G76*10 -> 1.666666667
A77: Hong Kong | B77: =SUM(D77+F77+H77) -> 3.666666667 | C77: 0.2 | D77: =C77*10 -> 2 | E77: 0 | F77: =E77*10 -> 0 | G77: 0.1666666667 | H77: =G77*10 -> 1.666666667
A78: Kazakhstan | B78: =SUM(D78+F78+H78) -> 3.611111111 | C78: 0.1388888889 | D78: =C78*10 -> 1.388888889 | E78: 0.05555555556 | F78: =E78*10 -> 0.5555555556 | G78: 0.1666666667 | H78: =G78*10 -> 1.666666667
A79: Uganda | B79: =SUM(D79+F79+H79) -> 3.5 | C79: 0.1 | D79: =C79*10 -> 1 | E79: 0.25 | F79: =E79*10 -> 2.5 | G79: 0 | H79: =G79*10 -> 0
A80: Uzbekistan | B80: =SUM(D80+F80+H80) -> 3.333333333 | C80: 0.1666666667 | D80: =C80*10 -> 1.666666667 | E80: 0 | F80: =E80*10 -> 0 | G80: 0.1666666667 | H80: =G80*10 -> 1.666666667
A81: Iraq | B81: =SUM(D81+F81+H81) -> 3.333333333 | C81: 0.08333333333 | D81: =C81*10 -> 0.8333333333 | E81: 0 | F81: =E81*10 -> 0 | G81: 0.25 | H81: =G81*10 -> 2.5
A82: Belarus | B82: =SUM(D82+F82+H82) -> 3.055555556 | C82: 0.1388888889 | D82: =C82*10 -> 1.388888889 | E82: 0 | F82: =E82*10 -> 0 | G82: 0.1666666667 | H82: =G82*10 -> 1.666666667
A83: Azerbadjan | B83: =SUM(D83+F83+H83) -> 3.055555556 | C83: 0.1388888889 | D83: =C83*10 -> 1.388888889 | E83: 0 | F83: =E83*10 -> 0 | G83: 0.1666666667 | H83: =G83*10 -> 1.666666667
A84: Egypt | B84: =SUM(D84+F84+H84) -> 3.055555556 | C84: 0.1944444444 | D84: =C84*10 -> 1.944444444 | E84: 0.1111111111 | F84: =E84*10 -> 1.111111111 | G84: 0 | H84: =G84*10 -> 0
A85: Rwanda | B85: =SUM(D85+F85+H85) -> 2.833333333 | C85: 0.2 | D85: =C85*10 -> 2 | E85: 0.08333333333 | F85: =E85*10 -> 0.8333333333 | G85: 0 | H85: =G85*10 -> 0
A86: China | B86: =SUM(D86+F86+H86) -> 2.777777778 | C86: 0.1666666667 | D86: =C86*10 -> 1.666666667 | E86: 0 | F86: =E86*10 -> 0 | G86: 0.1111111111 | H86: =G86*10 -> 1.111111111
A87: Morocco | B87: =SUM(D87+F87+H87) -> 2.777777778 | C87: 0.1111111111 | D87: =C87*10 -> 1.111111111 | E87: 0.1666666667 | F87: =E87*10 -> 1.666666667 | G87: 0 | H87: =G87*10 -> 0
A88: Saudia Arabia | B88: =SUM(D88+F88+H88) -> 2.555555556 | C88: 0.2 | D88: =C88*10 -> 2 | E88: 0.05555555556 | F88: =E88*10 -> 0.5555555556 | G88: 0 | H88: =G88*10 -> 0
A89: Myanmar | B89: =SUM(D89+F89+H89) -> 2.5 | C89: 0.08333333333 | D89: =C89*10 -> 0.8333333333 | E89: 0 | F89: =E89*10 -> 0 | G89: 0.1666666667 | H89: =G89*10 -> 1.666666667
A90: Russia | B90: =SUM(D90+F90+H90) -> 1.944444444 | C90: 0.08333333333 | D90: =C90*10 -> 0.8333333333 | E90: 0 | F90: =E90*10 -> 0 | G90: 0.1111111111 | H90: =G90*10 -> 1.111111111
